Workbook

Sheet Instructions
B2: =CONCATENATE(dms_Sector," ",dms_Segment," ", "Network Service Provider") -> Gas Transmission Network Service Provider
B3: =IF(dms_Model="Reset","Regulatory Proposal RIN Template","Annual Reporting RIN") -> Regulatory Proposal RIN Template
B4: =CONCATENATE("This template is to be used by ",dms_TradingNameFull," to fulfil its reporting obligations to the AER.") -> This template is to be used by APA VTS Australia (Operations) Pty Ltd to fulfil its reporting obligations to the AER.
B5: INSTRUCTIONS
B6: GENERAL | C6: Complete the Business & other details worksheet before entering data or values in any other worksheets. The Business & other details worksheet is linked to other worksheets within the workbook and automatically generates certain column headings and conditional formatting.
B8: CONFIDENTIAL INFORMATION | C8: Please use the button at the top of each worksheet to identify confidential information in the confidential workbook.
C9: - Do this by selecting the cell or cells that contain confidential information and then click the Mark selection as CONFIDENTIAL button. This will format the cells a specific colour that is identified by the AER's database which in turn marks that information as confidential. - To reverse this, select the cell or cells and run the Return selection to NON-CONFIDENTIAL button.
B11: AMENDMENTS | C11: If you wish to correct data previously submitted to the AER please contact the Director, Regulatory Information Management at the AER. The AER prefers the entire file is resubmitted with revised data marked accordingly. The most recently submitted version of the file should be used as the starting point. Data that is not being amended should be left unchanged. You must identify the reason for the amendments in the Amendment Reason box on the Business and other details worksheet.
C12: You may use the Amended Data button to highlight cells that contain amended data. NB: if data is also CONFIDENTIAL, re-apply the Confidentiality button after applying the Amended button.
C13: Please resubmit two (2) files - a confidential version and a public version of the amended submission to the AER
B15: NUMERICAL VALUES | C15: DO NOT ROUND values. Report values on a one for one basis: that is 1000 is to be entered as '1000'. Applicable units of measure may be identified in the table column headings or row descriptors.
B17: INPUT / NON-INPUT CELLS
D18: Yellow = Input cell (mandatory)
D19: Darker yellow = input cell (mandatory)
D20: Grey = Not applicable/No inputs required
D21: PLEASE DO NOT ENTER TEXT into cells that are to contain numeric data.
B24: NAVIGATION | C24: Many tables in the worksheets have been "grouped" to allow for easy navigation. To ungroup or group data use the outline symbols in the left margin (for Row groupings) or above the columns (for column groupings).

Sheet CONTENTS
B1: =INDEX(dms_Worksheet_List,MATCH(dms_Model,dms_Model_List)) -> REGULATORY REPORTING STATEMENT
B2: =INDEX(dms_TradingNameFull_List,MATCH(dms_TradingName,dms_TradingName_List)) -> APA VTS Australia (Operations) Pty Ltd
B3: =dms_Header_Span -> Data Span 2021 - 2027
C7: CONTENTS | D7: CONTENTS
C9: TEMPLATE DATE | D9: SEPTEMBER 2021
C11: SUBMISSION | D11: Business & other details
D12: CPI series
C14: EXPENDITURE | D14: E1. Expenditure Summary
D15: E2. Repex
D16: E3. Expansion
D17: E6. Non-network
D18: E10. Overheads
D19: E13. Other capex
D20: E17. Step changes
D21: E20. Opex
C23: NETWORK | D23: N1. Demand
D24: N2. Network Characteristics
C26: SERVICES | D26: S1. User Numbers
D27: S10. Supply Quality
C29: FINANCIAL | D29: F2. Capex
D30: F3. Revenue
C32: ADMIN | D32: Additional disclosures

Sheet Business & other details
V1: =INDEX(dms_Worksheet_List,MATCH(dms_Model,dms_Model_List)) -> REGULATORY REPORTING STATEMENT
V2: =INDEX(dms_TradingNameFull_List,MATCH(dms_TradingName,dms_TradingName_List)) -> APA VTS Australia (Operations) Pty Ltd
V3: =dms_Header_Span -> Data Span 2021 - 2027
V4: BUSINESS & OTHER DETAILS
V6: INSTRUCTIONS
V7: Complete the following business details regulatory template before entering data or values in any other regulatory template. This regulatory template is linked to other cells within the spreadsheet and automatically generates column headings and conditional formatting to distinguish business specific input and non-input cells.
Q9: SUBMISSION PARTICULARS INPUT SHEET
V12: ENTITY DETAILS
V14: Business Name
V16: Short name | AL16: APA VTS
V17: ACN/ABN | AL17: 65 083 009 278
V21: Business Address | BQ21: Postal Address
V23: Address 1 | AL23: Level 25 | BI23: Address 1 | BQ23: =INDEX(dms_PAddr1_List,MATCH(dms_TradingName,dms_TradingName_List)) -> PO Box R41
V24: Address 2 | AL24: =IF(ISBLANK(INDEX(dms_Addr2_List,MATCH(dms_TradingName,dms_TradingName_List))),"",(INDEX(dms_Addr2_List,MATCH(dms_TradingName,dms_TradingName_List)))) -> 580 George Street | BI24: Address 2 | BQ24: =IF(ISBLANK(INDEX(dms_PAddr2_List,MATCH(dms_TradingName,dms_TradingName_List))),"",(INDEX(dms_PAddr2_List,MATCH(dms_TradingName,dms_TradingName_List)))) -> 
V25: Suburb | AL25: =INDEX(dms_Suburb_List,MATCH(dms_TradingName,dms_TradingName_List)) -> SYDNEY | BI25: Suburb | BQ25: =INDEX(dms_PSuburb_List,MATCH(dms_TradingName,dms_TradingName_List)) -> ROYAL EXCHANGE
V26: State | AL26: =INDEX(dms_State_List,MATCH(dms_TradingName,dms_TradingName_List)) -> NSW | AV26: Post code | AX26: 2000 | BI26: State | BQ26: =INDEX(dms_PState_List,MATCH(dms_TradingName,dms_TradingName_List)) -> NSW | CA26: Post code | CC26: 1225
BA28: `
V30: Contact Names
V32: Name | BI32: Name
V33: Phone | BI33: Phone
V34: Email | BI34: Email
Q39: REGULATORY CONTROL PERIODS
Z42: Forthcoming period | AL42: 2023 | AU42: =FRCP_y2 -> 2024 | BD42: =FRCP_y3 -> 2025 | BM42: =FRCP_y4 -> 2026 | BV42: =FRCP_y5 -> 2027
AL43: =FRCP_y6 -> 2028 | AU43: =FRCP_y7 -> 2029 | BD43: =FRCP_y8 -> 2030 | BM43: =FRCP_y9 -> 2031 | BV43: =FRCP_y10 -> 2032
AL44: =FRCP_y11 -> 2033 | AU44: =FRCP_y12 -> 2034 | BD44: =FRCP_y13 -> 2035 | BM44: =FRCP_y14 -> 2036 | BV44: =FRCP_y15 -> 2037
X46: RESETS | Z46: Current period | AL46: =CRCP_y1 -> 2018 | AU46: =CRCP_y2 -> 2019 | BD46: =CRCP_y3 -> 2020 | BM46: =CRCP_y4 -> 2021 | BV46: =CRCP_y5 -> 2022
AL47: =CRCP_y6 -> 2023 | AU47: =CRCP_y7 -> 2024 | BD47: =CRCP_y8 -> 2025 | BM47: =CRCP_y9 -> 2026 | BV47: =CRCP_y10 -> 2027
AL48: =CRCP_y11 -> 2028 | AU48: =CRCP_y12 -> 2029 | BD48: =CRCP_y13 -> 2030 | BM48: =CRCP_y14 -> 2031 | BV48: =CRCP_y15 -> 2032
Z50: Previous period | AL50: =PRCP_y1 -> 2013 | AU50: =PRCP_y2 -> 2014 | BD50: =PRCP_y3 -> 2015 | BM50: =PRCP_y4 -> 2016 | BV50: =PRCP_y5 -> 2017
AL51: =PRCP_y6 -> 2018 | AU51: =PRCP_y7 -> 2019 | BD51: =PRCP_y8 -> 2020 | BM51: =PRCP_y9 -> 2021 | BV51: =PRCP_y10 -> 2022
AL52: =PRCP_y11 -> 2023 | AU52: =PRCP_y12 -> 2024 | BD52: =PRCP_y13 -> 2025 | BM52: =PRCP_y14 -> 2026 | BV52: =PRCP_y15 -> 2027
Z54: Commencing year | AL54: 2021-22
X55: ANNUAL RINS
Z56: Final year | AL56: 2025-26
Q60: SUBMISSION DETAILS
Z62: RIN type | AL62: =INDIRECT(dms_Model) -> Regulatory Reporting (Reset)
Z64: Source | AL64: Regulatory proposal
X66: THIS FILE | Z66: Data Quality | AL66: Consolidated
Z68: Confidentiality Status | AL68: Public
Z70: Amended RIN Amendment Reason
Z74: Submission Date | AL74: 2021-12-01

Sheet CPI series
B1: =IF(dms_MultiYear_ResponseFlag="Yes","REGULATORY REPORTING STATEMENT - HISTORICAL INFORMATION",INDEX(dms_Worksheet_List,MATCH(dms_Model,dms_Model_List))) -> REGULATORY REPORTING STATEMENT
B2: =INDEX(dms_TradingNameFull_List,MATCH(dms_TradingName,dms_TradingName_List)) -> APA VTS Australia (Operations) Pty Ltd
B4: CPI SERIES
B7: Name of CPI series | C7: All Groups CPI Average of Eight Capital Cities - ABS Series A2325846C
C9: =CRCP_y1 -> 2018 | D9: =CRCP_y2 -> 2019 | E9: =CRCP_y3 -> 2020 | F9: =CRCP_y4 -> 2021 | G9: =CRCP_y5 -> 2022 | H9: =FRCP_y1 -> 2023 | I9: =FRCP_y2 -> 2024 | J9: =FRCP_y3 -> 2025 | K9: =FRCP_y4 -> 2026 | L9: =FRCP_y5 -> 2027
B10: Series data | C10: 114.1 | D10: 116.2 | E10: 117.2 | F10: =+E10*(1+0.02) -> 119.544 | G10: =+F10*(1+0.02) -> 121.93488 | H10: 124.3728304 | I10: 126.859525 | J10: 129.3959381 | K10: 131.983064 | L10: 134.6219166

Sheet E1. Expenditure Summary
B1: =INDEX(dms_Worksheet_List,MATCH(dms_Model,dms_Model_List)) -> REGULATORY REPORTING STATEMENT
B2: =INDEX(dms_TradingNameFull_List,MATCH(dms_TradingName,dms_TradingName_List)) -> APA VTS Australia (Operations) Pty Ltd
B3: =dms_Header_Span -> Data Span 2021 - 2027
B4: E1. EXPENDITURE SUMMARY
B7: E1.1 - CAPEX
B8: E1.1.1 - REFERENCE SERVICES
C9: EXPENDITURE
C10: =CONCATENATE("$0's, real ",dms_DollarReal) -> $0's, real December 2022
C11: =CRCP_y4 -> 2021 | D11: =CRCP_y5 -> 2022 | E11: =FRCP_y1 -> 2023 | F11: =FRCP_y2 -> 2024 | G11: =FRCP_y3 -> 2025 | H11: =FRCP_y4 -> 2026 | I11: =FRCP_y5 -> 2027
B12: Replacement | C12: 28892065.66 | D12: 19706535.73 | E12: 26903877.04 | F12: 35886583.74 | G12: 25976959.74 | H12: 18107319.74 | I12: 16060075.74
B13: Expansion | C13: 30098684.67 | D13: 97330625.52 | E13: 80722170.9 | F13: 52419233.43 | G13: 6823007.667 | H13: 0 | I13: 0
B14: Non-network | C14: 5248754.487 | D14: 3484369.6 | E14: 3127996.475 | F14: 3853489.774 | G14: 2045934.475 | H14: 1329627.475 | I14: 2984457.238
B15: Capitalised network overheads | C15: 0 | D15: 3715093.28 | E15: 11426221 | F15: 11603801 | G15: 11512003 | H15: 10672152 | I15: 7996187
B16: Capitalised corporate overheads | C16: 0 | D16: 0 | E16: 8436330.59 | F16: 7106272.934 | G16: 3193537.287 | H16: 2070001.579 | I16: 1738322.735
B17: Other capex | C17: 0 | D17: 0 | E17: 0 | F17: 0 | G17: 0 | H17: 0 | I17: 0
B18: Capital contributions included in the above
B19: Total (less capital contributions) | C19: =SUM(C12:C17)-C18 -> 64239504.82 | D19: 124236624.1 | E19: 130616596 | F19: 110869380.9 | G19: 49551442.17 | H19: 32179100.79 | I19: 28779042.71
B21: E1.1.3 - OTHER SERVICES PROVIDED AS A COVERED PIPELINE
B22: Replacement
B23: Expansion
B24: Non-network
B25: Capitalised network overheads
B26: Capitalised corporate overheads
B27: Other capex
B28: Capital contributions included in the above
B29: Total (less capital contributions) | C29: =SUM(C22:C27)-C28 -> 0 | D29: 0 | E29: 0 | F29: 0 | G29: 0 | H29: 0 | I29: 0
B31: E1.1.5 - ALL CAPEX
B32: Replacement | C32: =C12+C22 -> 28892065.66 | D32: =D12+D22 -> 19706535.73 | E32: 26903877.04 | F32: 35886583.74 | G32: 25976959.74 | H32: 18107319.74 | I32: 16060075.74
B33: Expansion | C33: =C13+C23 -> 30098684.67 | D33: 97330625.52 | E33: 80722170.9 | F33: 52419233.43 | G33: 6823007.667 | H33: 0 | I33: 0
B34: Non-network | C34: 5248754.487 | D34: 3484369.6 | E34: 3127996.475 | F34: 3853489.774 | G34: 2045934.475 | H34: 1329627.475 | I34: 2984457.238
B35: Capitalised network overheads | C35: 0 | D35: 3715093.28 | E35: 11426221 | F35: 11603801 | G35: 11512003 | H35: 10672152 | I35: 7996187
B36: Capitalised corporate overheads | C36: 0 | D36: 0 | E36: 8436330.59 | F36: 7106272.934 | G36: 3193537.287 | H36: 2070001.579 | I36: 1738322.735
B37: Other capex | C37: 0 | D37: 0 | E37: 0 | F37: 0 | G37: 0 | H37: 0 | I37: 0
B38: Capital contributions included in the above
B39: Total (less capital contributions) | C39: =SUM(C32:C37)-C38 -> 64239504.82 | D39: 124236624.1 | E39: 130616596 | F39: 110869380.9 | G39: 49551442.17 | H39: 32179100.79 | I39: 28779042.71
B42: E1.2 - OPEX
B43: E1.2.1 - REFERENCE SERVICES
C44: EXPENDITURE
C45: =CONCATENATE("$0's, real ",dms_DollarReal) -> $0's, real December 2022
C46: =CRCP_y4 -> 2021 | D46: =CRCP_y5 -> 2022 | E46: =FRCP_y1 -> 2023 | F46: =FRCP_y2 -> 2024 | G46: =FRCP_y3 -> 2025 | H46: =FRCP_y4 -> 2026 | I46: =FRCP_y5 -> 2027
B47: Repairs and maintenance | C47: 21521504.16 | D47: 21627001.73 | E47: 24882574.8 | F47: 25720647.31 | G47: 25237847.89 | H47: 25542558.55 | I47: 25558560.36
B48: Other operating | C48: 8304381.722 | D48: 8345089.476 | E48: 9856766.506 | F48: 10202216.82 | G48: 10021007.72 | H48: 10137950.5 | I48: 10144404.03
B49: Debt raising | C49: 62256.85715 | D49: 61036.13446 | E49: 552671.3014 | F49: 594090.7953 | G49: 619922.1281 | H49: 611484.9803 | I49: 592471.611
B50: Equity raising
B51: Total | C51: =SUM(C47:C50) -> 29888142.74 | D51: 30033127.34 | E51: 35292012.6 | F51: 36516954.93 | G51: 35878777.74 | H51: 36291994.03 | I51: 36295435.99
B53: E1.2.3 - OTHER SERVICES PROVIDED AS A COVERED PIPELINE
B54: Repairs and maintenance
B55: Other operating
B56: Debt raising
B57: Equity raising
B58: Total | C58: =SUM(C54:C57) -> 0 | D58: 0 | E58: 0 | F58: 0 | G58: 0 | H58: 0 | I58: 0
B60: E1.2.5 - ALL OPEX
B61: Repairs and maintenance | C61: =+C47 -> 21521504.16 | D61: 21627001.73 | E61: 24882574.8 | F61: 25720647.31 | G61: 25237847.89 | H61: 25542558.55 | I61: 25558560.36
B62: Other operating | C62: 8304381.722 | D62: 8345089.476 | E62: 9856766.506 | F62: 10202216.82 | G62: 10021007.72 | H62: 10137950.5 | I62: 10144404.03
B63: Debt raising | C63: 62256.85715 | D63: 61036.13446 | E63: 552671.3014 | F63: 594090.7953 | G63: 619922.1281 | H63: 611484.9803 | I63: 592471.611
B64: Equity raising
B65: Total | C65: =SUM(C61:C64) -> 29888142.74 | D65: 30033127.34 | E65: 35292012.6 | F65: 36516954.93 | G65: 35878777.74 | H65: 36291994.03 | I65: 36295435.99
B68: E1.3 - CAPCONS
B69: E1.3.1 - REFERENCE SERVICES
C70: EXPENDITURE
C71: =CONCATENATE("$0's, real ",dms_DollarReal) -> $0's, real December 2022
C72: =CRCP_y4 -> 2021 | D72: =CRCP_y5 -> 2022 | E72: =FRCP_y1 -> 2023 | F72: =FRCP_y2 -> 2024 | G72: =FRCP_y3 -> 2025 | H72: =FRCP_y4 -> 2026 | I72: =FRCP_y5 -> 2027
B73: Replacement
B74: Expansion
B75: Non-network
B76: Capitalised network overheads
B77: Capitalised corporate overheads
B78: Other capex
B79: Total | C79: =SUM(C73:C78) -> 0 | D79: 0 | E79: 0 | F79: 0 | G79: 0 | H79: 0 | I79: 0
B81: E1.3.3 - OTHER SERVICES PROVIDED AS A COVERED PIPELINE
C82: EXPENDITURE
C83: =CONCATENATE("$0's, real ",dms_DollarReal) -> $0's, real December 2022
C84: =CRCP_y4 -> 2021 | D84: =CRCP_y5 -> 2022 | E84: =FRCP_y1 -> 2023 | F84: =FRCP_y2 -> 2024 | G84: =FRCP_y3 -> 2025 | H84: =FRCP_y4 -> 2026 | I84: =FRCP_y5 -> 2027
B85: Replacement
B86: Expansion
B87: Non-network
B88: Capitalised network overheads
B89: Capitalised corporate overheads
B90: Other capex
B91: Total | C91: =SUM(C85:C90) -> 0 | D91: 0 | E91: 0 | F91: 0 | G91: 0 | H91: 0 | I91: 0
B93: E1.3.5 - ALL CAPCONS
C94: EXPENDITURE
C95: =CONCATENATE("$0's, real ",dms_DollarReal) -> $0's, real December 2022
C96: =CRCP_y4 -> 2021 | D96: =CRCP_y5 -> 2022 | E96: =FRCP_y1 -> 2023 | F96: =FRCP_y2 -> 2024 | G96: =FRCP_y3 -> 2025 | H96: =FRCP_y4 -> 2026 | I96: =FRCP_y5 -> 2027
B97: Replacement
B98: Expansion
B99: Non-network
B100: Capitalised network overheads
B101: Capitalised corporate overheads
B102: Other capex
B103: Total | C103: =SUM(C97:C102) -> 0 | D103: 0 | E103: 0 | F103: 0 | G103: 0 | H103: 0 | I103: 0
B106: E1.4 - CAPITALISED OVERHEADS
B107: E1.4.1 - REFERENCE SERVICES
C108: EXPENDITURE
C109: =CONCATENATE("$0's, real ",dms_DollarReal) -> $0's, real December 2022
C110: =CRCP_y4 -> 2021 | D110: =CRCP_y5 -> 2022 | E110: =FRCP_y1 -> 2023 | F110: =FRCP_y2 -> 2024 | G110: =FRCP_y3 -> 2025 | H110: =FRCP_y4 -> 2026 | I110: =FRCP_y5 -> 2027
B111: Replacement | C111: 0 | D111: 0 | E111: 1860288.514 | F111: 2481404.425 | G111: 1796196.13 | H111: 1252044.041 | I111: 1110485.837
B112: Expansion | C112: 0 | D112: 0 | E112: 5581594.322 | F112: 3624566.738 | G112: 471781.9209 | H112: 0 | I112: 0
B113: Non-network | C113: 0 | D113: 0 | E113: 204373.2369 | F113: 197948.3529 | G113: 129553.2581 | H113: 80023.67982 | I113: 74934.62243
B114: Other capex | C114: 0 | D114: 0 | E114: 790074.5178 | F114: 802353.4185 | G114: 796005.9778 | H114: 737933.8581 | I114: 552902.2753
B115: Total | C115: =SUM(C111:C114) -> 0 | D115: =SUM(D111:D114) -> 0 | E115: 8436330.59 | F115: 7106272.934 | G115: 3193537.287 | H115: 2070001.579 | I115: 1738322.735
B118: E1.4.3 - OTHER SERVICES PROVIDED AS A COVERED PIPELINE
C119: EXPENDITURE
C120: =CONCATENATE("$0's, real ",dms_DollarReal) -> $0's, real December 2022
C121: =CRCP_y4 -> 2021 | D121: =CRCP_y5 -> 2022 | E121: =FRCP_y1 -> 2023 | F121: =FRCP_y2 -> 2024 | G121: =FRCP_y3 -> 2025 | H121: =FRCP_y4 -> 2026 | I121: =FRCP_y5 -> 2027
B122: Replacement | C122: 0 | D122: 0 | E122: 0 | F122: 0 | G122: 0 | H122: 0 | I122: 0
B123: Expansion | C123: 0 | D123: 0 | E123: 0 | F123: 0 | G123: 0 | H123: 0 | I123: 0
B124: Non-network | C124: 0 | D124: 0 | E124: 0 | F124: 0 | G124: 0 | H124: 0 | I124: 0
B125: Other capex | C125: 0 | D125: 0 | E125: 0 | F125: 0 | G125: 0 | H125: 0 | I125: 0
B126: Total | C126: =SUM(C122:C125) -> 0 | D126: 0 | E126: 0 | F126: 0 | G126: 0 | H126: 0 | I126: 0
B128: E1.4.5 - ALL CAPITALISED OVERHEADS
C129: EXPENDITURE
C130: =CONCATENATE("$0's, real ",dms_DollarReal) -> $0's, real December 2022
C131: =CRCP_y4 -> 2021 | D131: =CRCP_y5 -> 2022 | E131: =FRCP_y1 -> 2023 | F131: =FRCP_y2 -> 2024 | G131: =FRCP_y3 -> 2025 | H131: =FRCP_y4 -> 2026 | I131: =FRCP_y5 -> 2027
B132: Replacement | C132: =C111+C122 -> 0 | D132: =D111+D122 -> 0 | E132: 1860288.514 | F132: 2481404.425 | G132: 1796196.13 | H132: 1252044.041 | I132: 1110485.837
B133: Expansion | C133: =C112+C123 -> 0 | D133: 0 | E133: 5581594.322 | F133: 3624566.738 | G133: 471781.9209 | H133: 0 | I133: 0
B134: Non-network | C134: 0 | D134: 0 | E134: 204373.2369 | F134: 197948.3529 | G134: 129553.2581 | H134: 80023.67982 | I134: 74934.62243
B135: Other capex | C135: 0 | D135: 0 | E135: 790074.5178 | F135: 802353.4185 | G135: 796005.9778 | H135: 737933.8581 | I135: 552902.2753
B136: Total | C136: =SUM(C132:C135) -> 0 | D136: 0 | E136: 8436330.59 | F136: 7106272.934 | G136: 3193537.287 | H136: 2070001.579 | I136: 1738322.735

Sheet E2. Repex
B1: REGULATORY REPORTING STATEMENT
B2: =INDEX(dms_TradingNameFull_List,MATCH(dms_TradingName,dms_TradingName_List)) -> APA VTS Australia (Operations) Pty Ltd
B3: =dms_Header_Span -> Data Span 2021 - 2027
B4: E2. REPLACMENT CAPITAL EXPENDITURE
B7: E2.1 - CAPEX - BY DRIVER
D8: =CONCATENATE("EXPENDITURE Forecast ($0's real, ",dms_DollarReal,")") -> EXPENDITURE Forecast ($0's real, December 2022)
D9: =CRCP_y4 -> 2021 | E9: =CRCP_y5 -> 2022 | F9: =FRCP_y1 -> 2023 | G9: =FRCP_y2 -> 2024 | H9: =FRCP_y3 -> 2025 | I9: =FRCP_y4 -> 2026 | J9: =FRCP_y5 -> 2027
B10: Direct labour | D10: 8826588.998 | E10: 2867720.298 | F10: 3503748.141 | G10: 5186144.565 | H10: 2760603.632 | I10: 1511821.088 | J10: 1756203.575
B11: Direct materials | D11: 3972301.217 | E11: 4001771.441 | F11: 6440458.932 | G11: 9943013.622 | H11: 9876374.138 | I11: 7491482.363 | J11: 7909145.946
B12: Direct contractor | D12: 11561165.97 | E12: 10700192.33 | F12: 16120904.75 | G12: 19847814.54 | H12: 12296805.07 | I12: 7722527.827 | J12: 5372767.81
B13: Other direct expenditure | D13: 2891274.009 | E13: 862354.6818 | F13: 838765.2173 | G13: 909611.0123 | H13: 1043176.899 | I13: 1381488.462 | J13: 1021958.409
B14: Overheads | D14: 1640735.46 | E14: 1274496.977 | F14: 1860288.514 | G14: 2481404.425 | H14: 1796196.13 | I14: 1252044.041 | J14: 1110485.837
B15: Capital contributions included in the above | D15: 0 | E15: 0 | F15: 0 | G15: 0 | H15: 0 | I15: 0 | J15: 0
B16: Total (less capital contributions) | D16: =SUM(D10:D14)-D15 -> 28892065.66 | E16: =SUM(E10:E14)-E15 -> 19706535.73 | F16: 28764165.55 | G16: 38367988.16 | H16: 27773155.87 | I16: 19359363.78 | J16: 17170561.58
B18: E2.2 - CAPEX - BY PROJECT
B19: E2.2.1 - EXPENDITURE
D20: =CONCATENATE("EXPENDITURE Forecast ($0's real, ",dms_DollarReal,")") -> EXPENDITURE Forecast ($0's real, December 2022)
B21: Project Name | D21: =CRCP_y4 -> 2021 | E21: =CRCP_y5 -> 2022 | F21: =FRCP_y1 -> 2023 | G21: =FRCP_y2 -> 2024 | H21: =FRCP_y3 -> 2025 | I21: =FRCP_y4 -> 2026 | J21: =FRCP_y5 -> 2027
B22: Actuate MLV's in T1 areas | D22: 858422.6927 | E22: 1411272.378 | F22: 0 | G22: 0 | H22: 0 | I22: 0 | J22: 0
B23: Arc Flash Risk Mitigation | D23: 0 | E23: 0 | F23: 267286.4352 | G23: 267286.4352 | H23: 267286.4352 | I23: 267286.4352 | J23: 267286.4352
B24: Battery Charger Upgrades | D24: 0 | E24: 0 | F24: 213829.1482 | G24: 213829.1482 | H24: 213829.1482 | I24: 213829.1482 | J24: 213829.1482
B25: Bay St Unichema | D25: 127679.0161 | E25: 1247096.785 | F25: 0 | G25: 0 | H25: 0 | I25: 0 | J25: 0
B26: BCS MCC Room Fire Suppression System | D26: 1744481.083 | E26: 0 | F26: 0 | G26: 0 | H26: 0 | I26: 0 | J26: 0
B27: BCS Unit 12 Inlet Filter Upgrade | D27: 0 | E27: 0 | F27: 0 | G27: 0 | H27: 0 | I27: 0 | J27: 679676.2613
B28: Brooklyn Compressor Station | D28: 878294.7111 | E28: 609413.0724 | F28: 0 | G28: 0 | H28: 0 | I28: 0 | J28: 0
B29: Brooklyn CS upgrade | D29: 0 | E29: 0 | F29: 2672864.352 | G29: 2672864.352 | H29: 2672864.352 | I29: 2993608.075 | J29: 0
B30: Compressor Station Vent Stack Upgrade (BCS, WCS, GCS, SCS) | D30: 0 | E30: 727019.1039 | F30: 0 | G30: 0 | H30: 0 | I30: 0 | J30: 0
B31: Compressor Station Vent Upgrade | D31: 0 | E31: 0 | F31: 0 | G31: 507844.227 | H31: 534572.8705 | I31: 534572.8705 | J31: 534572.8705
B32: Control Valve Positioner Replacement | D32: 0 | E32: 0 | F32: 106914.5741 | G32: 106914.5741 | H32: 106914.5741 | I32: 106914.5741 | J32: 114906.4385
B33: Coogee Unpiggable | D33: 173746.1727 | E33: 277713.942 | F33: 0 | G33: 0 | H33: 0 | I33: 0 | J33: 0
B34: CP - Cathodic Protection Replacement | D34: 198626.34 | E34: 513189.9557 | F34: 0 | G34: 0 | H34: 0 | I34: 0 | J34: 0
B35: CP Replacement | D35: 0 | E35: 0 | F35: 248469.4702 | G35: 248469.4702 | H35: 248469.4702 | I35: 248469.4702 | J35: 248813.7351
B36: Critical Spares | D36: 0 | E36: 0 | F36: 0 | G36: 0 | H36: 0 | I36: 0 | J36: 2245206.056
B37: Culcairn Injection Gas Quality equipment | D37: 922821.2178 | E37: 483235.4322 | F37: 0 | G37: 0 | H37: 0 | I37: 0 | J37: 0
B38: Dandenong City Gate Gas Quality | D38: 0 | E38: 0 | F38: 0 | G38: 0 | H38: 534572.8705 | I38: 534572.8705 | J38: 405462.8308
B39: Emergency Response Equipment | D39: 0 | E39: 0 | F39: 0 | G39: 2672864.352 | H39: 2138291.482 | I39: 2138291.482 | J39: 1197443.23
B40: Encroachment High Consequence | D40: 0 | E40: 0 | F40: 470424.126 | G40: 470424.126 | H40: 470424.126 | I40: 470424.126 | J40: 470424.126
B41: Hazardous Area Rectification | D41: 102305.395 | E41: 591237.5948 | F41: 213829.1482 | G41: 213829.1482 | H41: 213829.1482 | I41: 310052.2649 | J41: 0
B42: HMI ClearSCADA Upgrade | D42: 0 | E42: 0 | F42: 192446.2334 | G42: 384892.4668 | H42: 192446.2334 | I42: 0 | J42: 0
B43: Iona CG Review | D43: 1279668.697 | E43: 183946.5247 | F43: 0 | G43: 0 | H43: 0 | I43: 0 | J43: 0
B44: Iona CS Aftercooler Upgrade | D44: 0 | E44: 0 | F44: 213829.1482 | G44: 1603718.611 | H44: 1603718.611 | I44: 0 | J44: 0
B45: L'ford Upg Flare | D45: -832.02 | E45: 0 | F45: 0 | G45: 0 | H45: 0 | I45: 0 | J45: 0
B46: Liquids Management | D46: 0 | E46: 0 | F46: 267286.4352 | G46: 0 | H46: 374201.0093 | I46: 0 | J46: 0
B47: Low Value Preventative & Reactive Maintenance | D47: 0 | E47: 0 | F47: 534572.8705 | G47: 534572.8705 | H47: 534572.8705 | I47: 534572.8705 | J47: 534572.8705
B48: Pakenham Unpiggables | D48: 627710.5251 | E48: 1290192.136 | F48: 0 | G48: 0 | H48: 0 | I48: 0 | J48: 0
B49: Pig Trap Installation James Street to Laverton Pipeline (253) | D49: 5304126.57 | E49: 0 | F49: 0 | G49: 0 | H49: 0 | I49: 0 | J49: 0
B50: Pig Trap Installation Tyers to Maryvale Pipeline (67) | D50: 273449.6596 | E50: 2401301.334 | F50: 0 | G50: 0 | H50: 0 | I50: 0 | J50: 0
B51: Pigging Program T1 Morwell - Dandenong Pigging and Repair Program | D51: 2795622 | E51: 1408856.964 | F51: 0 | G51: 0 | H51: 0 | I51: 0 | J51: 0
B52: Pigging Program T108 Newport | D52: 1001608.816 | E52: 0 | F52: 0 | G52: 0 | H52: 0 | I52: 0 | J52: 0
B53: Pigging Program T61 Packenham - Wollert | D53: 646293.96 | E53: 0 | F53: 0 | G53: 0 | H53: 0 | I53: 0 | J53: 0
B54: Pigging Program T63 Tyers - Morwell | D54: 1035241.216 | E54: 21382.91482 | F54: 0 | G54: 0 | H54: 0 | I54: 0 | J54: 0
B55: Pigging Program T66-70 Mt Franklin -Kyneton - Bendigo | D55: 4347.2 | E55: 0 | F55: 0 | G55: 0 | H55: 0 | I55: 0 | J55: 0
B56: Pigging Program T75 Wandong - Kyneton | D56: 457466.334 | E56: 1899584.595 | F56: 0 | G56: 0 | H56: 0 | I56: 0 | J56: 0
B57: Pipe Support Replacement | D57: 0 | E57: 0 | F57: 0 | G57: 0 | H57: 267286.4352 | I57: 267286.4352 | J57: 374201.0093
B58: Pipeline Integrity | D58: 0 | E58: 0 | F58: 7475181.559 | G58: 6895990.029 | H58: 7377105.613 | I58: 5559557.853 | J58: 2245206.056
B59: Regulator Upgrade - Lara pneumatic control system upgrade | D59: -18.74 | E59: 21382.91482 | F59: 0 | G59: 0 | H59: 0 | I59: 0 | J59: 0
B60: Reliability Centred Maintenance | D60: 0 | E60: 0 | F60: 534572.8705 | G60: 1871005.047 | H60: 0 | I60: 0 | J60: 0
B61: Remote CP/critical drainage bond monitoring | D61: 97094 | E61: 0 | F61: 0 | G61: 0 | H61: 0 | I61: 0 | J61: 0
B62: Somerton Pig Trap | D62: 110484.2458 | E62: 0 | F62: 0 | G62: 0 | H62: 0 | I62: 0 | J62: 0
B63: Station Control Logic Review & Rectification | D63: 0 | E63: 0 | F63: 85531.70146 | G63: 520588.1664 | H63: 520588.1664 | I63: 520588.1664 | J63: 520588.1664
B64: T015 Oakleigh PigT | D64: 256880.4246 | E64: 930796.2721 | F64: 0 | G64: 0 | H64: 0 | I64: 0 | J64: 0
B65: T110 Snowy Unpiggable | D65: 1396200.94 | E65: 2941233.199 | F65: 0 | G65: 0 | H65: 0 | I65: 0 | J65: 0
B66: T33 non-piggable and encased sections (unknown technical solution) | D66: 2260395.197 | E66: 0 | F66: 0 | G66: 0 | H66: 0 | I66: 0 | J66: 0
B67: T99 B'wartha-C ILI | D67: 992904.1608 | E67: 13651.70814 | F67: 0 | G67: 0 | H67: 0 | I67: 0 | J67: 0
B68: Turbine Overhaul and Minor Upgrades | D68: 0 | E68: 0 | F68: 1817547.76 | G68: 0 | H68: 0 | I68: 0 | J68: 3528180.945
B69: Turbine Overhauls | D69: 3036462.592 | E69: 0 | F69: 0 | G69: 0 | H69: 0 | I69: 0 | J69: 0
B70: Type B Compliance | D70: 0 | E70: 0 | F70: 0 | G70: 491807.0409 | H70: 534572.8705 | I70: 534572.8705 | J70: 534572.8705
B71: See continuation of list on "Additional disclosures" tab | D71: 305842.88 | E71: 0 | F71: 13095842.16 | G71: 18691088.1 | H71: 8753780.435 | I71: 4124764.269 | J71: 3055618.528
B72: Aggregate of other projects with total expenditure of less than $500,000 | D72: 2004740.372 | E72: 2734028.897 | F72: 353737.5599 | G72: 0 | H72: 213829.1482 | I72: 0 | J72: 0
B73: Total | D73: =SUM(D22:D72) -> 28892065.66 | E73: 19706535.73 | F73: 28764165.55 | G73: 38367988.16 | H73: 27773155.87 | I73: 19359363.78 | J73: 17170561.58
B75: E2.2.2 - VOLUMES
D76: VOLUMES
D77: 0's
C78: Units | D78: =CRCP_y4 -> 2021 | E78: =CRCP_y5 -> 2022 | F78: =FRCP_y1 -> 2023 | G78: =FRCP_y2 -> 2024 | H78: =FRCP_y3 -> 2025 | I78: =FRCP_y4 -> 2026 | J78: =FRCP_y5 -> 2027
B79: =IF(ISBLANK(B22),"",B22) -> Actuate MLV's in T1 areas
B80: Arc Flash Risk Mitigation
B81: Battery Charger Upgrades
B82: Bay St Unichema
B83: BCS MCC Room Fire Suppression System
B84: BCS Unit 12 Inlet Filter Upgrade
B85: Brooklyn Compressor Station
B86: Brooklyn CS upgrade
B87: Compressor Station Vent Stack Upgrade (BCS, WCS, GCS, SCS)
B88: Compressor Station Vent Upgrade
B89: Control Valve Positioner Replacement
B90: Coogee Unpiggable
B91: CP - Cathodic Protection Replacement
B92: CP Replacement
B93: Critical Spares
B94: Culcairn Injection Gas Quality equipment
B95: Dandenong City Gate Gas Quality
B96: Emergency Response Equipment
B97: Encroachment High Consequence
B98: Hazardous Area Rectification
B99: HMI ClearSCADA Upgrade
B100: Iona CG Review
B101: Iona CS Aftercooler Upgrade
B102: L'ford Upg Flare
B103: Liquids Management
B104: Low Value Preventative & Reactive Maintenance
B105: Pakenham Unpiggables
B106: Pig Trap Installation James Street to Laverton Pipeline (253)
B107: Pig Trap Installation Tyers to Maryvale Pipeline (67)
B108: Pigging Program T1 Morwell - Dandenong Pigging and Repair Program
B109: Pigging Program T108 Newport
B110: Pigging Program T61 Packenham - Wollert
B111: =IF(ISBLANK(B54),"",B54) -> Pigging Program T63 Tyers - Morwell
B112: Pigging Program T66-70 Mt Franklin -Kyneton - Bendigo
B113: Pigging Program T75 Wandong - Kyneton
B114: Pipe Support Replacement
B115: Pipeline Integrity
B116: Regulator Upgrade - Lara pneumatic control system upgrade
B117: Reliability Centred Maintenance
B118: Remote CP/critical drainage bond monitoring
B119: Somerton Pig Trap
B120: Station Control Logic Review & Rectification
B121: T015 Oakleigh PigT
B122: T110 Snowy Unpiggable
B123: T33 non-piggable and encased sections (unknown technical solution)
B124: T99 B'wartha-C ILI
B125: Turbine Overhaul and Minor Upgrades
B126: Turbine Overhauls
B127: Type B Compliance
B128: See continuation of list on "Additional disclosures" tab
B129: Aggregate of other projects with total expenditure of less than $500,000
B130: Total | D130: =SUM(D79:D129) -> 0 | E130: 0 | F130: 0 | G130: 0 | H130: 0 | I130: 0 | J130: 0

Sheet E3. Expansion
B1: =IF(dms_MultiYear_ResponseFlag="Yes","REGULATORY REPORTING STATEMENT - HISTORICAL INFORMATION",INDEX(dms_Worksheet_List,MATCH(dms_Model,dms_Model_List))) -> REGULATORY REPORTING STATEMENT
B2: =INDEX(dms_TradingNameFull_List,MATCH(dms_TradingName,dms_TradingName_List)) -> APA VTS Australia (Operations) Pty Ltd
B3: =dms_Header_Span -> Data Span 2021 - 2027
B4: E3. EXPANSION CAPITAL EXPENDITURE
B6: E3.1 - CAPEX - BY DRIVER
D7: =CONCATENATE("EXPENDITURE Forecast ($0's real, ",dms_DollarReal,")") -> EXPENDITURE Forecast ($0's real, December 2022)
D8: =CRCP_y4 -> 2021 | E8: =CRCP_y5 -> 2022 | F8: =FRCP_y1 -> 2023 | G8: =FRCP_y2 -> 2024 | H8: =FRCP_y3 -> 2025 | I8: =FRCP_y4 -> 2026 | J8: =FRCP_y5 -> 2027
B9: Direct labour | D9: 6445047.385 | E9: 8036519.147 | F9: 15528756.45 | G9: 8456725.016 | H9: 3150109.87 | I9: 0 | J9: 0
B10: Direct materials | D10: 8363881.54 | E10: 20384495.8 | F10: 31086250.52 | G10: 17405155.41 | H10: 164253.5556 | I10: 0 | J10: 0
B11: Direct contractor | D11: 5375698.69 | E11: 37988713.4 | F11: 19346983.87 | G11: 24327523.19 | H11: 3229535.111 | I11: 0 | J11: 0
B12: Other direct expenditure | D12: 7892982.176 | E12: 24626153.65 | F12: 14760180.06 | G12: 2229829.827 | H12: 279109.1304 | I12: 0 | J12: 0
B13: Overheads | D13: 2021075.138 | E13: 6294743.518 | F13: 5581594.322 | G13: 3624566.738 | H13: 471781.9209 | I13: 0 | J13: 0
B14: Capital contributions included in the above | D14: 0 | E14: 0 | F14: 0 | G14: 0 | H14: 0 | I14: 0 | J14: 0
B15: Total (less capital contributions) | D15: =SUM(D9:D13)-D14 -> 30098684.93 | E15: =SUM(E9:E13)-E14 -> 97330625.52 | F15: 86303765.22 | G15: 56043800.17 | H15: 7294789.588 | I15: 0 | J15: 0
B17: E3.2 - CAPEX - BY PROJECT
B18: E3.2.1 - EXPENDITURE
D19: =CONCATENATE("EXPENDITURE Forecast ($0's real, ",dms_DollarReal,")") -> EXPENDITURE Forecast ($0's real, December 2022)
B20: Project Name | D20: =CRCP_y4 -> 2021 | E20: =CRCP_y5 -> 2022 | F20: =FRCP_y1 -> 2023 | G20: =FRCP_y2 -> 2024 | H20: =FRCP_y3 -> 2025 | I20: =FRCP_y4 -> 2026 | J20: =FRCP_y5 -> 2027
B21: Stonehaven CS - now Winchelsea | D21: 1318.63 | E21: 0 | F21: 0 | G21: 0 | H21: 0 | I21: 0 | J21: 0
B22: SWP_570 | D22: 0 | E22: 0 | F22: 36851060.84 | G22: 53073985.94 | H22: 7294789.588 | I22: 0 | J22: 0
B23: VNIE Looping 6 to 8 | D23: 178167.7918 | E23: 0 | F23: 0 | G23: 0 | H23: 0 | I23: 0 | J23: 0
B24: Warragul Looping 6" (Southern Route) | D24: 3489.54 | E24: 0 | F24: 0 | G24: 0 | H24: 0 | I24: 0 | J24: 0
B25: WORM (Pipeline) | D25: 29972800.45 | E25: 97330625.52 | F25: 49452704.38 | G25: 2969814.236 | H25: 0 | I25: 0 | J25: 0
B41: Aggregate of other projects with total expenditure of less than $500,000 | D41: -57091.74 | E41: 0 | F41: 0 | G41: 0 | H41: 0 | I41: 0 | J41: 0
B42: Total | D42: =SUM(D21:D41) -> 30098684.67 | E42: 97330625.52 | F42: 86303765.22 | G42: 56043800.17 | H42: 7294789.588 | I42: 0 | J42: 0
B44: E3.2.2 - VOLUMES
D45: VOLUMES
C46: Units | D46: =CRCP_y4 -> 2021 | E46: =CRCP_y5 -> 2022 | F46: =FRCP_y1 -> 2023 | G46: =FRCP_y2 -> 2024 | H46: =FRCP_y3 -> 2025 | I46: =FRCP_y4 -> 2026 | J46: =FRCP_y5 -> 2027
B47: =IF(ISBLANK(B21),"",B21) -> Stonehaven CS - now Winchelsea
B48: SWP_570
B49: VNIE Looping 6 to 8
B50: Warragul Looping 6" (Southern Route)
B51: WORM (Pipeline)
B67: Aggregate of other projects with total expenditure of less than $500,000
B68: Total | D68: =SUM(D47:D67) -> 0 | E68: 0 | F68: 0 | G68: 0 | H68: 0 | I68: 0 | J68: 0

Sheet E6. Non-network
B1: =IF(dms_MultiYear_ResponseFlag="Yes","REGULATORY REPORTING STATEMENT - HISTORICAL INFORMATION",INDEX(dms_Worksheet_List,MATCH(dms_Model,dms_Model_List))) -> REGULATORY REPORTING STATEMENT
B2: =INDEX(dms_TradingNameFull_List,MATCH(dms_TradingName,dms_TradingName_List)) -> APA VTS Australia (Operations) Pty Ltd
B3: =dms_Header_Span -> Data Span 2021 - 2027
B4: E6. NON-NETWORK
B6: E6.1 - NON-NETWORK
B7: E6.1.1 - CAPEX - BY DRIVER
C8: =CONCATENATE("EXPENDITURE Forecast ($0's real, ",dms_DollarReal,")") -> EXPENDITURE Forecast ($0's real, December 2022)
C9: =CRCP_y4 -> 2021 | D9: =CRCP_y5 -> 2022 | E9: =FRCP_y1 -> 2023 | F9: =FRCP_y2 -> 2024 | G9: =FRCP_y3 -> 2025 | H9: =FRCP_y4 -> 2026 | I9: =FRCP_y5 -> 2027
B10: Direct labour | C10: 2472604.636 | D10: 561576.4091 | E10: 886706.4 | F10: 1031139.475 | G10: 562087.8 | H10: 347195.7 | I10: 325116
B11: Direct materials | C11: 171592.3065 | D11: 210656.2873 | E11: 172308.4746 | F11: 0 | G11: 172308.4746 | H11: 172308.4746 | I11: 172308.4746
B12: Direct contractor | C12: 204884.7219 | D12: 1412450.642 | E12: 1773412.8 | F12: 2536073.3 | G12: 1124175.6 | H12: 694391.4 | I12: 650232
B13: Other direct expenditure | C13: 2192374.219 | D13: 1147595.571 | E13: 295568.8 | F13: 286277 | G13: 187362.6 | H13: 115731.9 | I13: 1836800.763
B14: Overheads | C14: 207298.604 | D14: 152090.6901 | E14: 204373.2369 | F14: 197948.3529 | G14: 129553.2581 | H14: 80023.67982 | I14: 74934.62243
B15: Capital contributions included in the above | C15: 0 | D15: 0 | E15: 0 | F15: 0 | G15: 0 | H15: 0 | I15: 0
B16: Total (less capital contributions) | C16: =SUM(C10:C14)-C15 -> 5248754.487 | D16: =SUM(D10:D14)-D15 -> 3484369.6 | E16: 3332369.712 | F16: 4051438.127 | G16: 2175487.733 | H16: 1409651.154 | I16: 3059391.86
B19: E6.1.2 - CAPEX BY PROJECT
C20: =CONCATENATE("EXPENDITURE Forecast ($0's real, ",dms_DollarReal,")") -> EXPENDITURE Forecast ($0's real, December 2022)
C21: =CRCP_y4 -> 2021 | D21: =CRCP_y5 -> 2022 | E21: =FRCP_y1 -> 2023 | F21: =FRCP_y2 -> 2024 | G21: =FRCP_y3 -> 2025 | H21: =FRCP_y4 -> 2026 | I21: =FRCP_y5 -> 2027
B22: Dandenong refurbishment | C22: 1006895.666 | D22: 0 | E22: 0 | F22: 0 | G22: 0 | H22: 0 | I22: 0
B23: Information Technology | C23: 0 | D23: 229905.8927 | E23: 118592.853 | F23: 34610.38593 | G23: 4060.615524 | H23: 100632.2737 | I23: 0
B24: Operational Technology | C24: 0 | D24: 377440.5209 | E24: 847046.7505 | F24: 831686.3336 | G24: 682465.6626 | H24: 697826.0794 | I24: 719770.2958
B25: Share of corporate leased assets | C25: 802007.5453 | D25: 960403.4349 | E25: 0 | F25: 818411.2998 | G25: 0 | H25: 0 | I25: 1728428.763
B26: Share of corporate motor vehicles | C26: 164759.7224 | D26: 172308.4746 | E26: 172308.4746 | F26: 172308.4746 | G26: 172308.4746 | H26: 172308.4746 | I26: 172308.4746
B27: Transformation Office | C27: 0 | D27: 1316652.98 | E27: 2194421.633 | F27: 2194421.633 | G27: 1316652.98 | H27: 438884.3267 | I27: 438884.3267
B37: Aggregate of other projects with total expenditure of less than $500,000 | C37: 3275091.554 | D37: 427658.2964
B38: Total | C38: =SUM(C22:C37) -> 5248754.487 | D38: =SUM(D22:D37) -> 3484369.6 | E38: 3332369.712 | F38: 4051438.127 | G38: 2175487.733 | H38: 1409651.154 | I38: 3059391.86

Sheet E10. Overheads
B1: =IF(dms_MultiYear_ResponseFlag="Yes","REGULATORY REPORTING STATEMENT - HISTORICAL INFORMATION",INDEX(dms_Worksheet_List,MATCH(dms_Model,dms_Model_List))) -> REGULATORY REPORTING STATEMENT
B2: =INDEX(dms_TradingNameFull_List,MATCH(dms_TradingName,dms_TradingName_List)) -> APA VTS Australia (Operations) Pty Ltd
B3: =dms_Header_Span -> Data Span 2021 - 2027
B4: E10. OVERHEADS
B6: E10.1 - NETWORK
C7: =CONCATENATE("EXPENDITURE Forecast ($0's real, ",dms_DollarReal,")") -> EXPENDITURE Forecast ($0's real, December 2022)
C8: =CRCP_y4 -> 2021 | D8: =CRCP_y5 -> 2022 | E8: =FRCP_y1 -> 2023 | F8: =FRCP_y2 -> 2024 | G8: =FRCP_y3 -> 2025 | H8: =FRCP_y4 -> 2026 | I8: =FRCP_y5 -> 2027
B9: E10.1.1 - OPEX
B10: Reference services
B11: Other services provided as a covered pipeline
B12: All opex
B13: E10.1.2 - CAPEX
B14: Reference services | E14: 8436330.59 | F14: 7106272.934 | G14: 3193537.287 | H14: 2070001.579 | I14: 3193537.287
B15: Other services provided as a covered pipeline | E15: 0 | G15: 0 | H15: 0 | I15: 0
B16: All capex | E16: =E14+E15 -> 8436330.59 | F16: =F14+F15 -> 7106272.934 | G16: =G14+G15 -> 3193537.287 | H16: =H14+H15 -> 2070001.579 | I16: =I14+I15 -> 3193537.287
B20: E10.2 - CORPORATE
C21: =CONCATENATE("EXPENDITURE Forecast ($0's real, ",dms_DollarReal,")") -> EXPENDITURE Forecast ($0's real, December 2022)
C22: =CRCP_y4 -> 2021 | D22: =CRCP_y5 -> 2022 | E22: =FRCP_y1 -> 2023 | F22: =FRCP_y2 -> 2024 | G22: =FRCP_y3 -> 2025 | H22: =FRCP_y4 -> 2026 | I22: =FRCP_y5 -> 2027
B23: E10.2.1 - OPEX
B24: Reference services
B25: Other services provided as a covered pipeline
B26: All opex
B27: E10.2.2 - CAPEX
B28: Reference services | C28: 0 | D28: 0 | E28: 0 | F28: 0 | G28: 0 | H28: 0 | I28: 0
B29: Other services provided as a covered pipeline | C29: 0 | D29: 0 | E29: 0 | F29: 0 | G29: 0 | H29: 0 | I29: 0
B30: All capex | C30: =C28+C29 -> 0 | D30: 0 | E30: 0 | F30: 0 | G30: 0 | H30: 0 | I30: 0

Sheet E11. Labour
B1: =IF(dms_MultiYear_ResponseFlag="Yes","REGULATORY REPORTING STATEMENT - HISTORICAL INFORMATION",INDEX(dms_Worksheet_List,MATCH(dms_Model,dms_Model_List))) -> REGULATORY REPORTING STATEMENT
B2: =INDEX(dms_TradingNameFull_List,MATCH(dms_TradingName,dms_TradingName_List)) -> APA VTS Australia (Operations) Pty Ltd
B3: =dms_Header_Span -> Data Span 2021 - 2027
B4: E11. LABOUR
B6: Tables E11.1 and E11.2 intentionlly omitted.
B8: E11.3 - LABOUR / NON-LABOUR EXPENDITURE SPLIT
C9: EXPENDITURE Forecast ($0's real, June 2022)
C10: =CRCP_y4 -> 2021 | D10: =CRCP_y5 -> 2022 | E10: =FRCP_y1 -> 2023 | F10: =FRCP_y2 -> 2024 | G10: =FRCP_y3 -> 2025 | H10: =FRCP_y4 -> 2026 | I10: =FRCP_y5 -> 2027
B11: E11.3.1 - OPEX
B12: In-house labour expenditure | C12: 15414879.9 | D12: 15489656.05 | E12: 18201938.49 | F12: 18833705.38 | G12: 18504563.99 | H12: 18717681.27 | I12: 18719456.47
B13: Labour expenditure outsourced to related parties
B14: Labour expenditure outsourced to unrelated parties
B15: Non-labour expenditure | C15: 14473262.84 | D15: 14543471.29 | E15: 17090074.11 | F15: 17683249.55 | G15: 17374213.75 | H15: 17574312.77 | I15: 17575979.53
B16: Total | C16: =SUM(C12:C15) -> 29888142.74 | D16: =SUM(D12:D15) -> 30033127.34 | E16: 35292012.6 | F16: 36516954.93 | G16: 35878777.74 | H16: 36291994.03 | I16: 36295435.99
B18: E11.3.2 - CAPEX
B19: In-house labour expenditure | C19: ='E2. Repex'!D10+'E3. Expansion'!D9+'E6. Non-network'!C10+'E13. Other capex'!C10 -> 17744241.02 | D19: ='E2. Repex'!E10+'E3. Expansion'!E9+'E6. Non-network'!D10+'E13. Other capex'!D10 -> 12508263.05 | E19: ='E2. Repex'!F10+'E3. Expansion'!F9+'E6. Non-network'!E10+'E13. Other capex'!E10 -> 21075385.19 | F19: ='E2. Repex'!G10+'E3. Expansion'!G9+'E6. Non-network'!F10+'E13. Other capex'!F10 -> 15883457.26 | G19: ='E2. Repex'!H10+'E3. Expansion'!H9+'E6. Non-network'!G10+'E13. Other capex'!G10 -> 7627146.902 | H19: ='E2. Repex'!I10+'E3. Expansion'!I9+'E6. Non-network'!H10+'E13. Other capex'!H10 -> 2788970.288 | I19: ='E2. Repex'!J10+'E3. Expansion'!J9+'E6. Non-network'!I10+'E13. Other capex'!I10 -> 2208483.575
B20: Labour expenditure outsourced to related parties | C20: 0 | D20: 0 | E20: 0 | F20: 0 | G20: 0 | H20: 0 | I20: 0
B21: Labour expenditure outsourced to unrelated parties | C21: 0 | D21: 0 | E21: 0 | F21: 0 | G21: 0 | H21: 0 | I21: 0
B22: Non-labour expenditure | C22: ='E2. Repex'!D16+'E3. Expansion'!D15+'E6. Non-network'!C16+'E13. Other capex'!C16-C19 -> 46495264.06 | D22: ='E2. Repex'!E16+'E3. Expansion'!E15+'E6. Non-network'!D16+'E13. Other capex'!D16-D19 -> 111728361.1 | E22: ='E2. Repex'!F16+'E3. Expansion'!F15+'E6. Non-network'!E16+'E13. Other capex'!E16-E19 -> 109541210.8 | F22: ='E2. Repex'!G16+'E3. Expansion'!G15+'E6. Non-network'!F16+'E13. Other capex'!F16-F19 -> 94985923.63 | G22: ='E2. Repex'!H16+'E3. Expansion'!H15+'E6. Non-network'!G16+'E13. Other capex'!G16-G19 -> 41924295.27 | H22: ='E2. Repex'!I16+'E3. Expansion'!I15+'E6. Non-network'!H16+'E13. Other capex'!H16-H19 -> 29390130.51 | I22: ='E2. Repex'!J16+'E3. Expansion'!J15+'E6. Non-network'!I16+'E13. Other capex'!I16-I19 -> 26570559.14
B23: Total | C23: =SUM(C19:C22) -> 64239505.07 | D23: =SUM(D19:D22) -> 124236624.1 | E23: 130616596 | F23: 110869380.9 | G23: 49551442.17 | H23: 32179100.79 | I23: 28779042.71

Sheet E13. Other capex
B1: =IF(dms_MultiYear_ResponseFlag="Yes","REGULATORY REPORTING STATEMENT - HISTORICAL INFORMATION",INDEX(dms_Worksheet_List,MATCH(dms_Model,dms_Model_List))) -> REGULATORY REPORTING STATEMENT
B2: =INDEX(dms_TradingNameFull_List,MATCH(dms_TradingName,dms_TradingName_List)) -> APA VTS Australia (Operations) Pty Ltd
B3: =dms_Header_Span -> Data Span 2021 - 2027
B4: E13. OTHER CAPITAL EXPENDITURE
B6: E13.1 - OTHER CAPEX
B7: E13.1.1 - CAPEX - BY DRIVER
C8: =CONCATENATE("EXPENDITURE Forecast ($0's real, ",dms_DollarReal,")") -> EXPENDITURE Forecast ($0's real, December 2022)
C9: =CRCP_y4 -> 2021 | D9: =CRCP_y5 -> 2022 | E9: =FRCP_y1 -> 2023 | F9: =FRCP_y2 -> 2024 | G9: =FRCP_y3 -> 2025 | H9: =FRCP_y4 -> 2026 | I9: =FRCP_y5 -> 2027
B10: Direct labour | C10: 0 | D10: 1042447.2 | E10: 1156174.2 | F10: 1209448.2 | G10: 1154345.6 | H10: 929953.5 | I10: 127164
B11: Direct materials | C11: 0 | D11: 0 | E11: 0 | F11: 0 | G11: 32000 | H11: 0 | I11: 0
B12: Direct contractor | C12: 0 | D12: 2084894.4 | E12: 9884655.4 | F12: 9991203.4 | G12: 9965838.2 | H12: 9432214 | I12: 7826635
B13: Other direct expenditure | C13: 0 | D13: 347482.4 | E13: 385391.4 | F13: 403149.4 | G13: 359819.2 | H13: 309984.5 | I13: 42388
B14: Overheads | C14: 0 | D14: 240269.2803 | E14: 790074.5178 | F14: 802353.4185 | G14: 796005.9778 | H14: 737933.8581 | I14: 552902.2753
B15: Capital contributions included in the above | C15: 0 | D15: 0 | E15: 0 | F15: 0 | G15: 0 | H15: 0 | I15: 0
B16: Total (less capital contributions) | C16: =SUM(C10:C14)-C15 -> 0 | D16: =SUM(D10:D14)-D15 -> 3715093.28 | E16: 12216295.52 | F16: 12406154.42 | G16: 12308008.98 | H16: 11410085.86 | I16: 8549089.275
B19: E13.1.2 - CAPEX BY PROJECT
C20: =CONCATENATE("EXPENDITURE Forecast ($0's real, ",dms_DollarReal,")") -> EXPENDITURE Forecast ($0's real, December 2022)
C21: =CRCP_y4 -> 2021 | D21: =CRCP_y5 -> 2022 | E21: =FRCP_y1 -> 2023 | F21: =FRCP_y2 -> 2024 | G21: =FRCP_y3 -> 2025 | H21: =FRCP_y4 -> 2026 | I21: =FRCP_y5 -> 2027
B32: Aggregate of other projects with total expenditure of less than $500,000
B33: Total | C33: =SUM(C22:C32) -> 0 | D33: =SUM(D22:D32) -> 0 | E33: 0 | F33: 0 | G33: 0 | H33: 0 | I33: 0

Sheet E17. Step changes
B1: =INDEX(dms_Worksheet_List,MATCH(dms_Model,dms_Model_List)) -> REGULATORY REPORTING STATEMENT
B2: =INDEX(dms_TradingNameFull_List,MATCH(dms_TradingName,dms_TradingName_List)) -> APA VTS Australia (Operations) Pty Ltd
B3: =dms_Header_Span -> Data Span 2021 - 2027
B4: E17. STEP CHANGES
B6: E17.1 - STEP CHANGES FOR REFERENCE SERVICES
B7: E17.1.1 - FORECAST OPEX
D8: EXPENDITURE
D9: =CONCATENATE("$0's, real ",dms_DollarReal) -> $0's, real December 2022
B10: Step change | C10: Description | D10: =CRCP_y4 -> 2021 | E10: =CRCP_y5 -> 2022 | F10: =FRCP_y1 -> 2023 | G10: =FRCP_y2 -> 2024 | H10: =FRCP_y3 -> 2025 | I10: =FRCP_y4 -> 2026 | J10: =FRCP_y5 -> 2027
B11: Acquisition of carbon offset certificates | F11: 271596.4817 | G11: 283860.1995 | H11: 296123.9173 | I11: 326633.6543 | J11: 357143.3912
B12: Opex from Capex - WORM | F12: 605679.5959 | G12: 605679.5959 | H12: 605679.5959 | I12: 605679.5959 | J12: 605679.5959
B13: Opex from Capex - SWP compressors | F13: 0 | G13: 562520.6475 | H13: 1125041.295 | I13: 1125041.295 | J13: 1125041.295
B14: Transformation and Technology | F14: 2396909.5 | G14: 2992134.5 | H14: 1748319.5 | I14: 1140779.5 | J14: 1132569.5
B15: Security of Critical Infrastructure | F15: 1313392.65 | G15: 1313392.65 | H15: 1313392.65 | I15: 1313392.65 | J15: 1313392.65
B16: Increase in VTS property taxes | F16: 626534.8368 | G16: 626534.8368 | H16: 626534.8368 | I16: 626534.8368 | J16: 626534.8368
B21: Total | D21: =SUM(D11:D20) -> 0 | E21: 0 | F21: 5214113.064 | G21: 6384122.43 | H21: 5715091.795 | I21: 5138061.532 | J21: 5160361.269
B23: E17.1.2 - FORECAST CAPEX
D24: EXPENDITURE
D25: =CONCATENATE("$0's, real ", dms_DollarReal) -> $0's, real December 2022
B26: Step change | C26: Description | D26: =CRCP_y4 -> 2021 | E26: =CRCP_y5 -> 2022 | F26: =FRCP_y1 -> 2023 | G26: =FRCP_y2 -> 2024 | H26: =FRCP_y3 -> 2025 | I26: =FRCP_y4 -> 2026 | J26: =FRCP_y5 -> 2027
B37: Total | D37: =SUM(D27:D36) -> 0 | E37: 0 | F37: 0 | G37: 0 | H37: 0 | I37: 0 | J37: 0
B41: E17.2 - CATEGORY SPECIFIC FORECASTS
D42: EXPENDITURE
D43: =CONCATENATE("$0's, real ",dms_DollarReal) -> $0's, real December 2022
B44: Category desription | D44: =CRCP_y4 -> 2021 | E44: =CRCP_y5 -> 2022 | F44: =FRCP_y1 -> 2023 | G44: =FRCP_y2 -> 2024 | H44: =FRCP_y3 -> 2025 | I44: =FRCP_y4 -> 2026 | J44: =FRCP_y5 -> 2027
B70: Total | D70: =SUM(D45:D69) -> 0 | E70: 0 | F70: 0 | G70: 0 | H70: 0 | I70: 0 | J70: 0

Sheet E20. Opex
B1: =IF(dms_MultiYear_ResponseFlag="Yes","REGULATORY REPORTING STATEMENT - HISTORICAL INFORMATION",INDEX(dms_Worksheet_List,MATCH(dms_Model,dms_Model_List))) -> REGULATORY REPORTING STATEMENT
B2: =INDEX(dms_TradingNameFull_List,MATCH(dms_TradingName,dms_TradingName_List)) -> APA VTS Australia (Operations) Pty Ltd
B3: =dms_Header_Span -> Data Span 2021 - 2027
B4: E20. OPERATING EXPENDITURE
B6: IMPORTANT!
B7: =CONCATENATE("Has ",dms_TradingName," used a base-step-trend model to derive its opex forecast? ") -> Has APA VTS used a base-step-trend model to derive its opex forecast? | D7: Yes
B8: Yes / No
B9: Please nominate the base year | D9: 2020
B11: E20.1 - OPEX - BY DRIVER
B12: E20.1.1 - REFERENCE SERVICES
C13: EXPENDITURE
C14: =CONCATENATE("$0's, real ",dms_DollarReal) -> $0's, real December 2022
C15: =CRCP_y1 -> 2018 | D15: =CRCP_y2 -> 2019 | E15: =CRCP_y3 -> 2020 | F15: =CRCP_y4 -> 2021 | G15: =CRCP_y5 -> 2022 | H15: =FRCP_y1 -> 2023 | I15: =FRCP_y2 -> 2024 | J15: =FRCP_y3 -> 2025 | K15: =FRCP_y4 -> 2026 | L15: =FRCP_y5 -> 2027
B16: Base year total opex, excluding category specific | E16: 29411634.62 | F16: 29888142.74 | G16: 30033127.34 | H16: =+G16 -> 30033127.34 | I16: =+H16 -> 30033127.34 | J16: =+I16 -> 30033127.34 | K16: =+J16 -> 30033127.34 | L16: =+K16 -> 30033127.34
B17: Increment from base year to final year
B18: Price growth
B19: Output growth
B20: Productivity growth
B21: Step changes | H21: =+'E17. Step changes'!F21 -> 5214113.064 | I21: =+'E17. Step changes'!G21 -> 6384122.43 | J21: =+'E17. Step changes'!H21 -> 5715091.795 | K21: =+'E17. Step changes'!I21 -> 5138061.532 | L21: =+'E17. Step changes'!J21 -> 5160361.269
B22: Category specific | F22: =IF(ISBLANK('E17. Step changes'!D70),"",'E17. Step changes'!D70) -> 0 | G22: =IF(ISBLANK('E17. Step changes'!E70),"",'E17. Step changes'!E70) -> 0 | H22: =IF(ISBLANK('E17. Step changes'!F70),"",'E17. Step changes'!F70) -> 0 | I22: =IF(ISBLANK('E17. Step changes'!G70),"",'E17. Step changes'!G70) -> 0 | J22: =IF(ISBLANK('E17. Step changes'!H70),"",'E17. Step changes'!H70) -> 0 | K22: =IF(ISBLANK('E17. Step changes'!I70),"",'E17. Step changes'!I70) -> 0 | L22: =IF(ISBLANK('E17. Step changes'!J70),"",'E17. Step changes'!J70) -> 0
B24: E20.1.3 - OTHER SERVICES PROVIDED AS A COVERED PIPELINE
C25: EXPENDITURE
C26: =CONCATENATE("$0's, real ",dms_DollarReal) -> $0's, real December 2022
C27: =CRCP_y1 -> 2018 | D27: =CRCP_y2 -> 2019 | E27: =CRCP_y3 -> 2020 | F27: =CRCP_y4 -> 2021 | G27: =CRCP_y5 -> 2022 | H27: =FRCP_y1 -> 2023 | I27: =FRCP_y2 -> 2024 | J27: =FRCP_y3 -> 2025 | K27: =FRCP_y4 -> 2026 | L27: =FRCP_y5 -> 2027
B28: Base year total opex, excluding category specific
B29: Increment from base year to final year
B30: Price growth
B31: Output growth
B32: Productivity growth
B33: Step changes
B34: Category specific
B36: E20.1.5 - ALL OPEX
C37: EXPENDITURE
C38: =CONCATENATE("$0's, real ",dms_DollarReal) -> $0's, real December 2022
C39: =CRCP_y1 -> 2018 | D39: =CRCP_y2 -> 2019 | E39: =CRCP_y3 -> 2020 | F39: =CRCP_y4 -> 2021 | G39: =CRCP_y5 -> 2022 | H39: =FRCP_y1 -> 2023 | I39: =FRCP_y2 -> 2024 | J39: =FRCP_y3 -> 2025 | K39: =FRCP_y4 -> 2026 | L39: =FRCP_y5 -> 2027
B40: Base year total opex, excluding category specific | E40: =+E16 -> 29411634.62 | F40: 29888142.74 | G40: 30033127.34 | H40: 30033127.34 | I40: 30033127.34 | J40: 30033127.34 | K40: 30033127.34 | L40: 30033127.34
B41: Increment from base year to final year
B42: Price growth
B43: Output growth
B44: Productivity growth
B45: Step changes | H45: =+H21 -> 5214113.064 | I45: =+I21 -> 6384122.43 | J45: =+J21 -> 5715091.795 | K45: =+K21 -> 5138061.532 | L45: =+L21 -> 5160361.269
B46: Category specific
B48: E20.2 - OPEX - BY CATEGORY
B49: E20.2.1 - REFERENCE SERVICES
C50: =CONCATENATE("EXPENDITURE Forecast ($0's real, ",dms_DollarReal,")") -> EXPENDITURE Forecast ($0's real, December 2022)
C51: =CRCP_y1 -> 2018 | D51: =CRCP_y2 -> 2019 | E51: =CRCP_y3 -> 2020 | F51: =CRCP_y4 -> 2021 | G51: =CRCP_y5 -> 2022 | H51: =FRCP_y1 -> 2023 | I51: =FRCP_y2 -> 2024 | J51: =FRCP_y3 -> 2025 | K51: =FRCP_y4 -> 2026 | L51: =FRCP_y5 -> 2027
B52: Repairs and maintenance
B53: Other operating
B54: Debt raising
B55: Equity raising
B56: Total | F56: =SUM(F52:F55) -> 0 | G56: 0 | H56: 0 | I56: 0 | J56: 0 | K56: 0 | L56: 0
B58: E20.2.3 - OTHER SERVICES PROVIDED AS A COVERED PIPELINE
C59: =CONCATENATE("EXPENDITURE Forecast ($0's real, ",dms_DollarReal,")") -> EXPENDITURE Forecast ($0's real, December 2022)
C60: =CRCP_y1 -> 2018 | D60: =CRCP_y2 -> 2019 | E60: =CRCP_y3 -> 2020 | F60: =CRCP_y4 -> 2021 | G60: =CRCP_y5 -> 2022 | H60: =FRCP_y1 -> 2023 | I60: =FRCP_y2 -> 2024 | J60: =FRCP_y3 -> 2025 | K60: =FRCP_y4 -> 2026 | L60: =FRCP_y5 -> 2027
B61: Repairs and maintenance
B62: Other operating
B63: Debt raising
B64: Equity raising
B65: Total | F65: =SUM(F61:F64) -> 0 | G65: 0 | H65: 0 | I65: 0 | J65: 0 | K65: 0 | L65: 0
B67: E20.2.5 - ALL OPEX - BY CATEGORY
C68: =CONCATENATE("EXPENDITURE Forecast ($0's real, ",dms_DollarReal,")") -> EXPENDITURE Forecast ($0's real, December 2022)
C69: =CRCP_y1 -> 2018 | D69: =CRCP_y2 -> 2019 | E69: =CRCP_y3 -> 2020 | F69: =CRCP_y4 -> 2021 | G69: =CRCP_y5 -> 2022 | H69: =FRCP_y1 -> 2023 | I69: =FRCP_y2 -> 2024 | J69: =FRCP_y3 -> 2025 | K69: =FRCP_y4 -> 2026 | L69: =FRCP_y5 -> 2027
B70: Repairs and maintenance
B71: Other operating
B72: Debt raising
B73: Equity raising
B74: Total | F74: =SUM(F70:F73) -> 0 | G74: 0 | H74: 0 | I74: 0 | J74: 0 | K74: 0 | L74: 0
B77: E20.3 - OPEX - BY CATEGORY - RELATED PARTY MARGIN EXPENDITURE
B78: E20.3.1 - REFERENCE SERVICES
C79: =CONCATENATE("EXPENDITURE Forecast ($0's real, ",dms_DollarReal,")") -> EXPENDITURE Forecast ($0's real, December 2022)
C80: =CRCP_y1 -> 2018 | D80: =CRCP_y2 -> 2019 | E80: =CRCP_y3 -> 2020 | F80: =CRCP_y4 -> 2021 | G80: =CRCP_y5 -> 2022 | H80: =FRCP_y1 -> 2023 | I80: =FRCP_y2 -> 2024 | J80: =FRCP_y3 -> 2025 | K80: =FRCP_y4 -> 2026 | L80: =FRCP_y5 -> 2027
B81: Repairs and maintenance
B82: Other operating
B83: Debt raising
B84: Equity raising
B85: Total | F85: =SUM(F81:F84) -> 0 | G85: 0 | H85: 0 | I85: 0 | J85: 0 | K85: 0 | L85: 0
B87: E20.3.3 - OTHER SERVICES PROVIDED AS A COVERED PIPELINE
C88: =CONCATENATE("EXPENDITURE Forecast ($0's real, ",dms_DollarReal,")") -> EXPENDITURE Forecast ($0's real, December 2022)
C89: =CRCP_y1 -> 2018 | D89: =CRCP_y2 -> 2019 | E89: =CRCP_y3 -> 2020 | F89: =CRCP_y4 -> 2021 | G89: =CRCP_y5 -> 2022 | H89: =FRCP_y1 -> 2023 | I89: =FRCP_y2 -> 2024 | J89: =FRCP_y3 -> 2025 | K89: =FRCP_y4 -> 2026 | L89: =FRCP_y5 -> 2027
B90: Repairs and maintenance
B91: Other operating
B92: Debt raising
B93: Equity raising
B94: Total | F94: =SUM(F90:F93) -> 0 | G94: 0 | H94: 0 | I94: 0 | J94: 0 | K94: 0 | L94: 0
B96: E20.3.5 - ALL OPEX - BY CATEGORY - RELATED PARTY MARGIN EXPENDITURE
C97: =CONCATENATE("EXPENDITURE Forecast ($0's real, ",dms_DollarReal,")") -> EXPENDITURE Forecast ($0's real, December 2022)
C98: =CRCP_y1 -> 2018 | D98: =CRCP_y2 -> 2019 | E98: =CRCP_y3 -> 2020 | F98: =CRCP_y4 -> 2021 | G98: =CRCP_y5 -> 2022 | H98: =FRCP_y1 -> 2023 | I98: =FRCP_y2 -> 2024 | J98: =FRCP_y3 -> 2025 | K98: =FRCP_y4 -> 2026 | L98: =FRCP_y5 -> 2027
B99: Repairs and maintenance
B100: Other operating
B101: Debt raising
B102: Equity raising
B103: Total | F103: =SUM(F99:F102) -> 0 | G103: 0 | H103: 0 | I103: 0 | J103: 0 | K103: 0 | L103: 0

Sheet N1. Demand
B1: =IF(dms_MultiYear_ResponseFlag="Yes","REGULATORY REPORTING STATEMENT - HISTORICAL INFORMATION",INDEX(dms_Worksheet_List,MATCH(dms_Model,dms_Model_List))) -> REGULATORY REPORTING STATEMENT
B2: =INDEX(dms_TradingNameFull_List,MATCH(dms_TradingName,dms_TradingName_List)) -> APA VTS Australia (Operations) Pty Ltd
B3: =dms_Header_Span -> Data Span 2021 - 2027
B4: N1. DEMAND
B6: N1.1 - DEMAND - BY USER TYPE
C7: VOLUMES
C8: GJ
C9: =CRCP_y4 -> 2021 | D9: =CRCP_y5 -> 2022 | E9: =FRCP_y1 -> 2023 | F9: =FRCP_y2 -> 2024 | G9: =FRCP_y3 -> 2025 | H9: =FRCP_y4 -> 2026 | I9: =FRCP_y5 -> 2027
B10: Electricity generation customers | C10: 3190000 | D10: 2190000 | E10: 1900000 | F10: 1770000 | G10: 920000 | H10: 915501.6136 | I10: 931686.2067
B11: Total | C11: =SUM(C10:C10) -> 3190000 | D11: 2190000 | E11: 1900000 | F11: 1770000 | G11: 920000 | H11: 915501.6136 | I11: 931686.2067
B14: N1.2 - DEMAND - BY REFERENCE SERVICES
C15: VOLUMES
C16: GJ
B17: Reference service | C17: =CRCP_y4 -> 2021 | D17: =CRCP_y5 -> 2022 | E17: =FRCP_y1 -> 2023 | F17: =FRCP_y2 -> 2024 | G17: =FRCP_y3 -> 2025 | H17: =FRCP_y4 -> 2026 | I17: =FRCP_y5 -> 2027
B18: Tariffed Transmission Service
B19: Ballarat SWZ | C19: 10600000 | D19: 10600000 | E19: 10600000 | F19: 10600000 | G19: 10700000 | H19: 10042894.9 | I19: 10144006.96
B20: Geelong SWZ | C20: 20600000 | D20: 20600000 | E20: 20400000 | F20: 20300000 | G20: 20300000 | H20: 19608644.82 | I20: 19716458.86
B21: Gippsland SWZ | C21: 14000000 | D21: 13800000 | E21: 13600000 | F21: 13400000 | G21: 13200000 | H21: 13067734.37 | I21: 13112894.72
B22: Melbourne SWZ | C22: 127700000 | D22: 125800000 | E22: 123400000 | F22: 121200000 | G22: 119500000 | H22: 117306130.2 | I22: 118238865
B23: Northern SWZ | C23: 20000000 | D23: 20100000 | E23: 20000000 | F23: 19900000 | G23: 19800000 | H23: 19071340.66 | I23: 19176764.72
B24: Western SWZ | C24: 4000000 | D24: 4000000 | E24: 4000000 | F24: 4000000 | G24: 4000000 | H24: 3869270.332 | I24: 3875803.258
B25: Culcairn export | C25: 18934171.73 | D25: 11358769.29 | E25: 13896057.48 | F25: 13896057.48 | G25: 13896057.48 | H25: 13896057.48 | I25: 13896057.48
B38: Total | C38: =SUM(C18:C37) -> 215834171.7 | D38: =SUM(D18:D37) -> 206258769.3 | E38: 205896057.5 | F38: 203296057.5 | G38: 201396057.5 | H38: 196862072.7 | I38: 198160851
B41: N1.3 - WITHDRAWALS
B42: N1.3.1 - PEAK VOLUME - BY LOCATION
C43: VOLUMES
C44: GJ
B45: Withdrawal Point | C45: =CRCP_y4 -> 2021 | D45: =CRCP_y5 -> 2022 | E45: =FRCP_y1 -> 2023 | F45: =FRCP_y2 -> 2024 | G45: =FRCP_y3 -> 2025 | H45: =FRCP_y4 -> 2026 | I45: =FRCP_y5 -> 2027
B46: A. MINIMUM
B47: Ballarat SWZ
B48: Geelong SWZ
B49: Gippsland SWZ
B50: Melbourne SWZ
B51: Northern SWZ
B52: Western SWZ
B97: B. MAXIMUM
B98: =IF(ISBLANK(B47),"",B47) -> Ballarat SWZ | C98: 64600 | D98: 64800 | E98: 64800 | F98: 65100 | G98: 66000 | H98: 68156.22689 | I98: 66553.48911
B99: =IF(ISBLANK(B48),"",B48) -> Geelong SWZ | C99: 115700 | D99: 116200 | E99: 115000 | F99: 115000 | G99: 115700 | H99: 121017.635 | I99: 118171.827
B100: =IF(ISBLANK(B49),"",B49) -> Gippsland SWZ | C100: 68400 | D100: 68100 | E100: 67300 | F100: 66800 | G100: 66600 | H100: 70649.49188 | I100: 68988.12335
B101: Melbourne SWZ | C101: 787000 | D101: 775000 | E101: 757100 | F101: 743700 | G101: 735400 | H101: 795791.5185 | I101: 777077.9659
B102: Northern SWZ | C102: 101800 | D102: 102300 | E102: 101800 | F102: 101600 | G102: 101900 | H102: 106728.5029 | I102: 104218.713
B103: Western SWZ | C103: 17100 | D103: 17200 | E103: 17200 | F103: 17200 | G103: 17200 | H103: 17997.60188 | I103: 17574.37662
B148: C. AVERAGE
B149: =IF(ISBLANK(B47),"",B47) -> Ballarat SWZ | C149: =+C19/365 -> 29041.09589 | D149: =+D19/365 -> 29041.09589 | E149: =+E19/365 -> 29041.09589 | F149: =+F19/366 -> 28961.74863 | G149: =+G19/365 -> 29315.06849 | H149: 27514.78054 | I149: 27791.7999
B150: =IF(ISBLANK(B48),"",B48) -> Geelong SWZ | C150: =+C20/365 -> 56438.35616 | D150: =+D20/365 -> 56438.35616 | E150: 55890.41096 | F150: =+F20/366 -> 55464.48087 | G150: =+G20/365 -> 55616.43836 | H150: 53722.31456 | I150: 54017.6955
B151: =IF(ISBLANK(B49),"",B49) -> Gippsland SWZ | C151: 38356.16438 | D151: =+D21/365 -> 37808.21918 | E151: 37260.27397 | F151: 36612.02186 | G151: =+G21/365 -> 36164.38356 | H151: 35802.01197 | I151: 35925.73895
B152: Melbourne SWZ | C152: 349863.0137 | D152: =+D22/365 -> 344657.5342 | E152: 338082.1918 | F152: 331147.541 | G152: =+G22/365 -> 327397.2603 | H152: 321386.658 | I152: 323942.096
B153: Northern SWZ | C153: 54794.52055 | D153: =+D23/365 -> 55068.49315 | E153: 54794.52055 | F153: 54371.5847 | G153: =+G23/365 -> 54246.57534 | H153: 52250.24837 | I153: 52539.08144
B154: Western SWZ | C154: 10958.90411 | D154: =+D24/365 -> 10958.90411 | E154: 10958.90411 | F154: 10928.96175 | G154: =+G24/365 -> 10958.90411 | H154: 10600.74063 | I154: 10618.63906
B201: N1.3.2 - ANNUAL VOLUME - BY LOCATION
C202: VOLUMES
C203: GJ
B204: Withdrawal Point | C204: =CRCP_y4 -> 2021 | D204: =CRCP_y5 -> 2022 | E204: =FRCP_y1 -> 2023 | F204: =FRCP_y2 -> 2024 | G204: =FRCP_y3 -> 2025 | H204: =FRCP_y4 -> 2026 | I204: =FRCP_y5 -> 2027
B205: =IF(ISBLANK(B47),"",B47) -> Ballarat SWZ | C205: =+C19 -> 10600000 | D205: =+D19 -> 10600000 | E205: =+E19 -> 10600000 | F205: =+F19 -> 10600000 | G205: 10700000 | H205: 10042894.9 | I205: 10144006.96
B206: Geelong SWZ | C206: =+C20 -> 20600000 | D206: 20600000 | E206: =+E20 -> 20400000 | F206: 20300000 | G206: 20300000 | H206: 19608644.82 | I206: 19716458.86
B207: Gippsland SWZ | C207: =+C21 -> 14000000 | D207: 13800000 | E207: 13600000 | F207: 13400000 | G207: 13200000 | H207: 13067734.37 | I207: 13112894.72
B208: Melbourne SWZ | C208: =+C22 -> 127700000 | D208: 125800000 | E208: 123400000 | F208: 121200000 | G208: 119500000 | H208: 117306130.2 | I208: 118238865
B209: Northern SWZ | C209: =+C23 -> 20000000 | D209: 20100000 | E209: 20000000 | F209: 19900000 | G209: 19800000 | H209: 19071340.66 | I209: 19176764.72
B210: Western SWZ | C210: =+C24 -> 4000000 | D210: 4000000 | E210: 4000000 | F210: 4000000 | G210: 4000000 | H210: 3869270.332 | I210: 3875803.258
B211: =IF(ISBLANK(B53),"",B53) -> 
B226: =IF(ISBLANK(B68),"",B68) -> 
B259: N1.4 - INJECTIONS
B260: N1.4.1 - PEAK VOLUME - BY LOCATION
C261: VOLUMES
C262: GJ
B263: Injection Point | C263: =CRCP_y4 -> 2021 | D263: =CRCP_y5 -> 2022 | E263: =FRCP_y1 -> 2023 | F263: =FRCP_y2 -> 2024 | G263: =FRCP_y3 -> 2025 | H263: =FRCP_y4 -> 2026 | I263: =FRCP_y5 -> 2027
B264: A. MINIMUM
B265: 101. Longford
B266: 103. Culcairn
B267: 104. Dandenong
B268: 105. Iona
B269: 107. VicHub
B270: 108. SeaGas
B271: 109. Pakenham
B272: 111. TasHub
B315: B. MAXIMUM
B316: =IF(ISBLANK(B265),"",B265) -> 101. Longford | C316: 652838.5686 | D316: 623875.6292 | E316: 622778.5265 | F316: 614914.2469 | G316: 609167.2733 | H316: 595453.2256 | I316: 599381.6702
B317: =IF(ISBLANK(B266),"",B266) -> 103. Culcairn | C317: 132091.0653 | D317: 126230.8945 | E317: 126008.914 | F317: 124417.7073 | G317: 123254.9024 | H317: 120480.0922 | I317: 121274.9478
B318: =IF(ISBLANK(B267),"",B267) -> 104. Dandenong | C318: 58186.20439 | D318: 55604.79515 | E318: 55507.01257 | F318: 54806.08495 | G318: 54293.86862 | H318: 53071.5628 | I318: 53421.69726
B319: =IF(ISBLANK(B268),"",B268) -> 105. Iona | C319: 241844.9181 | D319: 231115.5586 | E319: 230709.1354 | F319: 227795.8025 | G319: 225666.8285 | H319: 220586.4413 | I319: 222041.7388
B320: =IF(ISBLANK(B269),"",B269) -> 107. VicHub | C320: 88535.53966 | D320: 84607.6935 | E320: 84458.90851 | F320: 83392.38414 | G320: 82613.00095 | H320: 80753.15279 | I320: 81285.91384
B321: 108. SeaGas | C321: 66866.7968 | D321: 63900.27633 | E321: 63787.90591 | F321: 62982.4094 | G321: 62393.77734 | H321: 60989.12007 | I321: 61391.48984
B322: 109. Pakenham | C322: 38333.95818 | D322: 36633.28644 | E322: 36568.86578 | F322: 36107.08399 | G322: 35769.62806 | H322: 34964.35436 | I322: 35195.02828
B323: 111. TasHub | C323: 45703.6502 | D323: 43676.02482 | E323: 43599.21931 | F323: 43048.6601 | G323: 42646.32837 | H323: 41686.24104 | I323: 41961.26195
B366: C. AVERAGE
B367: =IF(ISBLANK(B265),"",B265) -> 101. Longford | C367: 415219.7319 | D367: 487903.589 | E367: 480757.9885 | F367: 474444.885 | G367: 468085.5318 | H367: 457359.0762 | I367: 460399.9176
B368: =IF(ISBLANK(B266),"",B266) -> 103. Culcairn | C368: 42840.47255 | D368: 20328.4712 | E368: 20030.75022 | F368: 19767.71517 | G368: 19502.75314 | H368: 19055.83606 | I368: 19182.53252
B369: =IF(ISBLANK(B267),"",B267) -> 104. Dandenong | C369: 1376.440866 | D369: 1943.144651 | E369: 1914.686292 | F369: 1889.543469 | G369: 1864.216451 | H369: 1821.496833 | I369: 1833.607412
B370: 105. Iona | C370: 47324.20855 | D370: 41133.24954 | E370: 40530.83181 | F370: 39998.59867 | G370: 39462.46639 | H370: 38558.16074 | I370: 38814.52222
B371: 107. VicHub | C371: 31258.46574
B372: 108. SeaGas | C372: 4268.372838
B373: 109. Pakenham | C373: 26212.4982 | D373: 26735.53869 | E373: 26343.98289 | F373: 25998.04525 | G373: 25649.57326 | H373: 25061.79818 | I373: 25228.42645
B374: 111. TasHub | C374: 5275.361534
B392: =IF(ISBLANK(B290),"",B290) -> 
B419: N1.4.2 - ANNUAL VOLUME - BY LOCATION
C420: VOLUMES
C421: GJ
B422: Injection Point | C422: =CRCP_y4 -> 2021 | D422: =CRCP_y5 -> 2022 | E422: =FRCP_y1 -> 2023 | F422: =FRCP_y2 -> 2024 | G422: =FRCP_y3 -> 2025 | H422: =FRCP_y4 -> 2026 | I422: =FRCP_y5 -> 2027
B423: =IF(ISBLANK(B265),"",B265) -> 101. Longford | C423: 151970421.9 | D423: 178084810 | E423: 175476665.8 | F423: 173172383 | G423: 170851219.1 | H423: 166936062.8 | I423: 168045969.9
B424: =IF(ISBLANK(B266),"",B266) -> 103. Culcairn | C424: 15679612.95 | D424: 7419891.987 | E424: 7311223.829 | F424: 7215216.039 | G424: 7118504.895 | H424: 6955380.163 | I424: 7001624.37
B425: =IF(ISBLANK(B267),"",B267) -> 104. Dandenong | C425: 503777.3569 | D425: 709247.7974 | E425: 698860.4964 | F425: 689683.3664 | G425: 680439.0046 | H425: 664846.3441 | I425: 669266.7052
B426: 105. Iona | C426: 17320660.33 | D426: 15013636.08 | E426: 14793753.61 | F426: 14599488.52 | G426: 14403800.23 | H426: 14073728.67 | I426: 14167300.61
B427: 107. VicHub | C427: 11440598.46
B428: 108. SeaGas | C428: 1562224.459
B429: 109. Pakenham | C429: 9593774.341 | D429: 9758471.624 | E429: 9615553.756 | F429: 9489286.515 | G429: 9362094.238 | H429: 9147556.336 | I429: 9208375.655
B430: 111. TasHub | C430: 1930782.321

Sheet N2. Network characteristics
B1: =IF(dms_MultiYear_ResponseFlag="Yes","REGULATORY REPORTING STATEMENT - HISTORICAL INFORMATION",INDEX(dms_Worksheet_List,MATCH(dms_Model,dms_Model_List))) -> REGULATORY REPORTING STATEMENT
B2: =INDEX(dms_TradingNameFull_List,MATCH(dms_TradingName,dms_TradingName_List)) -> APA VTS Australia (Operations) Pty Ltd
B3: =dms_Header_Span -> Data Span 2021 - 2027
B4: N2. NETWORK CHARACTERISTICS
B6: N2.1 - NETWORK LENGTH - BY PIPELINE
C7: VOLUMES
C8: KM
B9: Pipeline name | C9: =CRCP_y4 -> 2021 | D9: =CRCP_y5 -> 2022 | E9: =FRCP_y1 -> 2023 | F9: =FRCP_y2 -> 2024 | G9: =FRCP_y3 -> 2025 | H9: =FRCP_y4 -> 2026 | I9: =FRCP_y5 -> 2027
B10: Route KMs (where applicable)
B11: Longford to Melbourne | C11: 174.2 | D11: 174.2 | E11: 174.2 | F11: 174.2 | G11: 174.2 | H11: 174.2 | I11: 174.2
B12: South West Pipeline (from Iona)
B13: South West Pipeline (to Iona)
B14: South West Pipeline | C14: 202 | D14: 202 | E14: 202 | F14: 202 | G14: 202 | H14: 202 | I14: 202
B15: Western Transmission System | C15: 224.9 | D15: 224.9 | E15: 224.9 | F15: 224.9 | G15: 224.9 | H15: 224.9 | I15: 224.9
B16: Victorian Northern Interconnect (to Vic)
B17: Victorian Northern Interconnect (from Vic)
B18: Victorian Northern Interconnect (VNI) | C18: 332 | D18: 332 | E18: 332 | F18: 332 | G18: 332 | H18: 332 | I18: 332
B25: Total | C25: =SUM(C10:C24) -> 933.1 | D25: 933.1 | E25: 933.1 | F25: 933.1 | G25: 933.1 | H25: 933.1 | I25: 933.1
B28: N2.2 - NETWORK CAPACITY - BY PIPELINE
C29: VOLUMES
C30: GJ / day
B31: Pipeline name | C31: =CRCP_y4 -> 2021 | D31: =CRCP_y5 -> 2022 | E31: =FRCP_y1 -> 2023 | F31: =FRCP_y2 -> 2024 | G31: =FRCP_y3 -> 2025 | H31: =FRCP_y4 -> 2026 | I31: =FRCP_y5 -> 2027
B32: =IF(ISBLANK(B10),"",B10) -> Route KMs (where applicable)
B33: Longford to Melbourne | C33: 1030 | D33: 1030 | E33: 1030 | F33: 1030 | G33: 1030 | H33: 1030 | I33: 1030
B34: South West Pipeline (from Iona) | C34: 426 | D34: 426 | E34: 448 | F34: 497 | G34: 550 | H34: 550 | I34: 550
B35: South West Pipeline (to Iona) | C35: 140 | D35: 140 | E35: 298 | F35: 315 | G35: 329 | H35: 329 | I35: 329
B36: South West Pipeline
B37: Western Transmission System | C37: 28 | D37: 28 | E37: 28 | F37: 28 | G37: 28 | H37: 28 | I37: 28
B38: Victorian Northern Interconnect (to Vic) | C38: 195 | D38: 195 | E38: 195 | F38: 195 | G38: 195 | H38: 195 | I38: 195
B39: Victorian Northern Interconnect (from Vic) | C39: 193 | D39: 193 | E39: 193 | F39: 193 | G39: 193 | H39: 193 | I39: 193
B40: Victorian Northern Interconnect (VNI)
B47: Total | C47: =SUM(C32:C46) -> 2012 | D47: 2012 | E47: 2192 | F47: 2258 | G47: 2325 | H47: 2325 | I47: 2325
B51: N2.3 - AVERAGE UTILISATION - BY PIPELINE
C52: VOLUMES
C53: %
B54: Pipeline name | C54: =CRCP_y4 -> 2021 | D54: =CRCP_y5 -> 2022 | E54: =FRCP_y1 -> 2023 | F54: =FRCP_y2 -> 2024 | G54: =FRCP_y3 -> 2025 | H54: =FRCP_y4 -> 2026 | I54: =FRCP_y5 -> 2027
B55: =IF(ISBLANK(B10),"",B10) -> Route KMs (where applicable)
B56: Longford to Melbourne | C56: =SUM('N1. Demand'!C367,'N1. Demand'!C369,'N1. Demand'!C371,'N1. Demand'!C373,'N1. Demand'!C374)/'N2. Network characteristics'!C33/1000 -> 0.4653810663 | D56: =SUM('N1. Demand'!D367,'N1. Demand'!D369,'N1. Demand'!D371,'N1. Demand'!D373,'N1. Demand'!D374)/'N2. Network characteristics'!D33/1000 -> 0.5015361868 | E56: =SUM('N1. Demand'!E367,'N1. Demand'!E369,'N1. Demand'!E371,'N1. Demand'!E373,'N1. Demand'!E374)/'N2. Network characteristics'!E33/1000 -> 0.4941909297 | F56: =SUM('N1. Demand'!F367,'N1. Demand'!F369,'N1. Demand'!F371,'N1. Demand'!F373,'N1. Demand'!F374)/'N2. Network characteristics'!F33/1000 -> 0.4877014308 | G56: =SUM('N1. Demand'!G367,'N1. Demand'!G369,'N1. Demand'!G371,'N1. Demand'!G373,'N1. Demand'!G374)/'N2. Network characteristics'!G33/1000 -> 0.4811643898 | H56: =SUM('N1. Demand'!H367,'N1. Demand'!H369,'N1. Demand'!H371,'N1. Demand'!H373,'N1. Demand'!H374)/'N2. Network characteristics'!H33/1000 -> 0.4701382245 | I56: =SUM('N1. Demand'!I367,'N1. Demand'!I369,'N1. Demand'!I371,'N1. Demand'!I373,'N1. Demand'!I374)/'N2. Network characteristics'!I33/1000 -> 0.4732640305
B57: South West Pipeline (from Iona) | C57: =+('N1. Demand'!C370+'N1. Demand'!C372)/'N2. Network characteristics'!C34/1000 -> 0.121109346 | D57: =+('N1. Demand'!D370+'N1. Demand'!D372)/'N2. Network characteristics'!D34/1000 -> 0.09655692379 | E57: =+('N1. Demand'!E370+'N1. Demand'!E372)/'N2. Network characteristics'!E34/1000 -> 0.09047060672 | F57: =+('N1. Demand'!F370+'N1. Demand'!F372)/'N2. Network characteristics'!F34/1000 -> 0.08048007781 | G57: =+('N1. Demand'!G370+'N1. Demand'!G372)/'N2. Network characteristics'!G34/1000 -> 0.0717499389 | H57: =+('N1. Demand'!H370+'N1. Demand'!H372)/'N2. Network characteristics'!H34/1000 -> 0.0701057468 | I57: =+('N1. Demand'!I370+'N1. Demand'!I372)/'N2. Network characteristics'!I34/1000 -> 0.07057185858
B58: South West Pipeline (to Iona)
B59: South West Pipeline
B60: Western Transmission System
B61: Victorian Northern Interconnect (to Vic) | C61: =+'N1. Demand'!C368/'N2. Network characteristics'!C38/1000 -> 0.219694731 | D61: =+'N1. Demand'!D368/'N2. Network characteristics'!D38/1000 -> 0.1042485702 | E61: =+'N1. Demand'!E368/'N2. Network characteristics'!E38/1000 -> 0.102721796 | F61: =+'N1. Demand'!F368/'N2. Network characteristics'!F38/1000 -> 0.1013728983 | G61: =+'N1. Demand'!G368/'N2. Network characteristics'!G38/1000 -> 0.1000141186 | H61: =+'N1. Demand'!H368/'N2. Network characteristics'!H38/1000 -> 0.09772223623 | I61: =+'N1. Demand'!I368/'N2. Network characteristics'!I38/1000 -> 0.09837196164
B62: Victorian Northern Interconnect (from Vic)
B63: Victorian Northern Interconnect (VNI)
B72: N2.4 - FIRM CONTRACTED CAPACITY - BY PIPELINE
C73: VOLUMES
C74: %
B75: Pipeline name | C75: =CRCP_y4 -> 2021 | D75: =CRCP_y5 -> 2022 | E75: =FRCP_y1 -> 2023 | F75: =FRCP_y2 -> 2024 | G75: =FRCP_y3 -> 2025 | H75: =FRCP_y4 -> 2026 | I75: =FRCP_y5 -> 2027
B76: =IF(ISBLANK(B10),"",B10) -> Route KMs (where applicable)
B77: Longford to Melbourne
B78: South West Pipeline (from Iona)
B79: South West Pipeline (to Iona)
B80: South West Pipeline
B81: Western Transmission System
B82: Victorian Northern Interconnect (to Vic)
B83: Victorian Northern Interconnect (from Vic)
B84: Victorian Northern Interconnect (VNI)

Sheet S1. User Numbers
B1: =IF(dms_MultiYear_ResponseFlag="Yes","REGULATORY REPORTING STATEMENT - HISTORICAL INFORMATION",INDEX(dms_Worksheet_List,MATCH(dms_Model,dms_Model_List))) -> REGULATORY REPORTING STATEMENT
B2: =INDEX(dms_TradingNameFull_List,MATCH(dms_TradingName,dms_TradingName_List)) -> APA VTS Australia (Operations) Pty Ltd
B3: =dms_Header_Span -> Data Span 2021 - 2027
B4: S1. USER NUMBERS
B6: S1.1 - USER NUMBERS - BY USER TYPE
C7: VOLUMES
C8: 0's
C9: =CRCP_y4 -> 2021 | D9: =CRCP_y5 -> 2022 | E9: =FRCP_y1 -> 2023 | F9: =FRCP_y2 -> 2024 | G9: =FRCP_y3 -> 2025 | H9: =FRCP_y4 -> 2026 | I9: =FRCP_y5 -> 2027
B10: ELECTRICITY GENERATION USERS
B11: User numbers as at 1 July | C11: 6 | D11: 6 | E11: 6 | F11: 6 | G11: 6 | H11: 6 | I11: 6
B12: User numbers as at 30 June | C12: 6 | D12: 6 | E12: 6 | F12: 6 | G12: 6 | H12: 6 | I12: 6
B13: Total user connections | C13: 0 | D13: 0 | E13: 0 | F13: 0 | G13: 0 | H13: 0 | I13: 0
B14: Total user disconnections | C14: 0 | D14: 0 | E14: 0 | F14: 0 | G14: 0 | H14: 0 | I14: 0
B17: S1.2 - USER NUMBERS - BY REFERENCE SERVICE
B18: S1.2.1 - USER NUMBERS AS AT 1 JULY
C19: VOLUMES
C20: 0's
B21: Reference service | C21: =CRCP_y4 -> 2021 | D21: =CRCP_y5 -> 2022 | E21: =FRCP_y1 -> 2023 | F21: =FRCP_y2 -> 2024 | G21: =FRCP_y3 -> 2025 | H21: =FRCP_y4 -> 2026 | I21: =FRCP_y5 -> 2027
B22: Tariffed Transmission Service | C22: 53
B42: Total | C42: =SUM(C22:C41) -> 53 | D42: 0 | E42: 0 | F42: 0 | G42: 0 | H42: 0 | I42: 0
B44: S1.2.2 - USER NUMBERS AS AT 30 JUNE
C45: VOLUMES
C46: 0's
B47: Reference service | C47: =CRCP_y4 -> 2021 | D47: =CRCP_y5 -> 2022 | E47: =FRCP_y1 -> 2023 | F47: =FRCP_y2 -> 2024 | G47: =FRCP_y3 -> 2025 | H47: =FRCP_y4 -> 2026 | I47: =FRCP_y5 -> 2027
B48: =IF(ISBLANK(B22),"",B22) -> Tariffed Transmission Service | C48: 59 | D48: 59 | E48: 59 | F48: 59 | G48: 59 | H48: 59 | I48: 59
B49: =IF(ISBLANK(B23),"",B23) -> 
B50: =IF(ISBLANK(B24),"",B24) -> 
B68: Total | C68: =SUM(C48:C67) -> 59 | D68: 59 | E68: 59 | F68: 59 | G68: 59 | H68: 59 | I68: 59

Sheet S10. Supply quality
B1: =IF(dms_MultiYear_ResponseFlag="Yes","REGULATORY REPORTING STATEMENT - HISTORICAL INFORMATION",INDEX(dms_Worksheet_List,MATCH(dms_Model,dms_Model_List))) -> REGULATORY REPORTING STATEMENT
B2: =INDEX(dms_TradingNameFull_List,MATCH(dms_TradingName,dms_TradingName_List)) -> APA VTS Australia (Operations) Pty Ltd
B3: =dms_Header_Span -> Data Span 2021 - 2027
B4: S10. SUPPLY QUALITY
B7: S10.1 - PRESSURE FAULTS
C8: VOLUMES
C9: 0's
C10: =dms_y1 -> 2021 | D10: =dms_y2 -> 2022 | E10: =dms_y3 -> 2023 | F10: =dms_y4 -> 2024 | G10: =dms_y5 -> 2025 | H10: =dms_y6 -> 2026 | I10: =dms_y7 -> 2027 | J10: =dms_y8 -> 2028 | K10: =dms_y9 -> 2029
B11: USER IMPACT
B12: Poor pressure events impacting users | C12: 0 | D12: 0 | E12: 0 | F12: 0 | G12: 0 | H12: 0 | I12: 0
B13: Pressure events with >12 hr resolution | C13: 0 | D13: 0 | E13: 0 | F13: 0 | G13: 0 | H13: 0 | I13: 0
B15: FORCE MAJEURE
B16: Poor pressure events - force majeure | C16: 0 | D16: 0 | E16: 0 | F16: 0 | G16: 0 | H16: 0 | I16: 0
B17: Poor pressure events - NOT force majeure | C17: 0 | D17: 0 | E17: 0 | F17: 0 | G17: 0 | H17: 0 | I17: 0
B18: Total | C18: =SUM(C16:C17) -> 0 | D18: =SUM(D16:D17) -> 0 | E18: 0 | F18: 0 | G18: 0 | H18: 0 | I18: 0 | J18: 0 | K18: 0

Sheet F2. Capex
B1: =IF(dms_MultiYear_ResponseFlag="Yes","REGULATORY REPORTING STATEMENT - HISTORICAL INFORMATION",INDEX(dms_Worksheet_List,MATCH(dms_Model,dms_Model_List))) -> REGULATORY REPORTING STATEMENT
B2: =INDEX(dms_TradingNameFull_List,MATCH(dms_TradingName,dms_TradingName_List)) -> APA VTS Australia (Operations) Pty Ltd
B3: Data span 2020-21 to 2021-22
B4: F2. CAPITAL EXPENDITURE
B7: F2.7 - IMMEDIATE EXPENSING OF CAPEX
B8: F2.7.1 - ACTUAL - AS COMMISSIONED
C9: EXPENDITURE
C10: Forecast ($0's, real December 2022)
B11: Asset class | C11: 2020-21 | D11: 2021-22
B12: Pipelines
B13: Compressors
B14: City Gates & Field Regulators
B15: Odourant Plants
B16: Gas Quality
B17: Other | C17: 6462910.032 | D17: 3396420.964
B18: General Buildings
B19: General Land
B20: Integrity Inspections
B42: Total | C42: =SUM(C12:C41) -> 6462910.032 | D42: =SUM(D12:D41) -> 3396420.964

Sheet F3. Revenue
B1: =IF(dms_MultiYear_ResponseFlag="Yes","REGULATORY REPORTING STATEMENT - HISTORICAL INFORMATION",INDEX(dms_Worksheet_List,MATCH(dms_Model,dms_Model_List))) -> REGULATORY REPORTING STATEMENT
B2: =INDEX(dms_TradingNameFull_List,MATCH(dms_TradingName,dms_TradingName_List)) -> APA VTS Australia (Operations) Pty Ltd
B3: =dms_Header_Span -> Data Span 2021 - 2027
B4: F3. REVENUE
B7: F3.1 - REFERENCE SERVICES
C8: EXPENDITURE
C9: =CONCATENATE("Forecast ($0's, real ",dms_DollarReal,")") -> Forecast ($0's, real December 2022)
C10: =CRCP_y4 -> 2021 | D10: =CRCP_y5 -> 2022 | E10: =FRCP_y1 -> 2023 | F10: =FRCP_y2 -> 2024 | G10: =FRCP_y3 -> 2025 | H10: =FRCP_y4 -> 2026 | I10: =FRCP_y5 -> 2027
B11: Revenue per Price Control Model | C11: 120885307.7 | D11: 104857647.5
B12: Smoothed revenue requirement | E12: 115451635.7 | F12: 121793532.6 | G12: 128483797.4 | H12: 135541566.5 | I12: 142987027.4
B21: F3.3 - REBATEABLE SERVICES
B22: Total
B23: F3.5 - OTHER SERVICES PROVIDED AS A COVERED PIPELINE
B31: Total Revenue | C31: =SUM(C11:C20,C22,C24:C30) -> 120885307.7 | D31: =SUM(D11:D20,D22,D24:D30) -> 104857647.5 | E31: 115451635.7 | F31: 121793532.6 | G31: 128483797.4 | H31: 135541566.5 | I31: 142987027.4

Sheet Additional disclosures
A1: Continuation of table E.2.2 - Capex - By Project, due to not being able to insert lines.
B2: E2.2 - CAPEX - BY PROJECT
B3: E2.2.1 - EXPENDITURE
D4: EXPENDITURE Forecast ($0's real, December 2022)
B5: Project Name | D5: 2021 | E5: 2022 | F5: 2023 | G5: 2024 | H5: 2025 | I5: 2026 | J5: 2027
B6: VTS Insulated and Unpiggable Facility Pipework | D6: 0 | E6: 0 | F6: 1986472.787 | G6: 1986472.787 | H6: 1986472.787 | I6: 1986472.787 | J6: 1986472.787
B7: VTS Mainline Isolation Valve Upgrade​ | D7: 0 | E7: 0 | F7: 0 | G7: 694944.7316 | H7: 1069145.741 | I7: 1069145.741 | J7: 1069145.741
B8: VTS Unpiggables | D8: 0 | E8: 0 | F8: 10360967.36 | G8: 15047439.41 | H8: 3243403.286 | I8: 0 | J8: 0
B9: Water bath inspections | D9: 305842.88 | E9: 0 | F9: 0 | G9: 0 | H9: 0 | I9: 0 | J9: 0
B10: WCS A Process Safety | D10: 0 | E10: 0 | F10: 0 | G10: 0 | H10: 1389889.463 | I10: 0 | J10: 0
B11: Wollert CG & T74/T119 PRS Instrument Air | D11: 0 | E11: 0 | F11: 534572.8705 | G11: 534572.8705 | H11: 637210.8616 | I11: 0 | J11: 0
B12: VTS Waterbath Integrity | D12: 0 | E12: 0 | F12: 213829.1482 | G12: 427658.2964 | H12: 427658.2964 | I12: 1069145.741 | J12: 0
B13: Total | D13: =D6+D7+D8+D9+D10+D11+D12 -> 305842.88 | E13: 0 | F13: 13095842.16 | G13: 18691088.1 | H13: 8753780.435 | I13: 4124764.269 | J13: 3055618.528
A16: Note 1 | B16: The information below relates to the Table 2.2.2 - Volume, which forms part of the tab called E2. Repex.
B18: In Table 2.2.2 the service provider must report the volume and a unit of measure, for each replacement project reported in Table E2.2.1.
B20: In Table E2.2.2 the service provider must report the volume and a unit of measure for all replacement projects in aggregate where the total cumulative capital expenditure over the life of each project is less than $500,000.
B22: The scales of the projects which VTS has undertaken cannot be assessed on the dimension of volume.
B24: Therefore the table requesting this information has been left blank.
A27: Note 2 | B27: The information below relates to the Table 3.2.2 - Volume, which forms part of the tab called E3. Expansion.
B29: In Table 3.2.2 the service provider must report the length of the pipeline, for each expansion projects reported in Table 3.2.1.
B31: In Table 3.2.2 the service provider is also required to report the length of pipeline for all expansion projects in aggregate where the total cumulative capital expenditure over the life of each project is less than $500,000.
B33: The scales of the projects which VTS has undertaken cannot be assessed on the dimension of length.
B35: Therefore the table requesting this information has been left blank.

Sheet AER CF (hidden)
B1: AER CONDITIONAL FORMATTING
B4: CONDITIONAL FORMATTING MAP
F5: =INDEX(dms_CF_3.6.1, MATCH(dms_TradingName,dms_CF_TradingName))="Y" | G5: =INDEX(dms_CF_3.6.5, MATCH(dms_TradingName,dms_CF_TradingName))="Y" | H5: =INDEX(dms_CF_3.6.6, MATCH(dms_TradingName,dms_CF_TradingName))="Y" | I5: =INDEX(dms_CF_3.6.7.1, MATCH(dms_TradingName,dms_CF_TradingName))="Y" | J5: =INDEX(dms_CF_3.6.7.2, MATCH(dms_TradingName,dms_CF_TradingName))="Y" | K5: =INDEX(dms_CF_3.6.7.3, MATCH(dms_TradingName,dms_CF_TradingName))="Y" | L5: =INDEX(dms_CF_3.6.7.4, MATCH(dms_TradingName,dms_CF_TradingName))="Y" | M5: =INDEX(dms_CF_3.6.8, MATCH(dms_TradingName,dms_CF_TradingName))="Y" | N5: =INDEX(dms_CF_4.1, MATCH(dms_TradingName,dms_CF_TradingName))="Y" | O5: =INDEX(dms_CF_6.6.1, MATCH(dms_TradingName,dms_CF_TradingName))="Y" | P5: =INDEX(dms_CF_6.8, MATCH(dms_TradingName,dms_CF_TradingName))="Y" | Q5: =INDEX(dms_CF_7.12, MATCH(dms_TradingName,dms_CF_TradingName))="Y" | R5: =INDEX(dms_CF_8.1_A, MATCH(dms_TradingName,dms_CF_TradingName))="Y" | S5: =INDEX(dms_CF_8.1_B, MATCH(dms_TradingName,dms_CF_TradingName))="Y" | T5: =INDEX(dms_CF_8.1_Neg, MATCH(dms_TradingName,dms_CF_TradingName))="Y" | U5: =INDEX(dms_CF_4.4.1_Neg, MATCH(dms_TradingName,dms_CF_TradingName))="Y"
B6: dms_CF_TradingName | C6: JurisdictionList | D6: Sector | E6: Segment | F6: dms_CF_3.6.1 | G6: dms_CF_3.6.5 | H6: dms_CF_3.6.6 | I6: dms_CF_3.6.7.1 | J6: dms_CF_3.6.7.2 | K6: dms_CF_3.6.7.3 | L6: dms_CF_3.6.7.4 | M6: dms_CF_3.6.8 | N6: dms_CF_4.1 | O6: dms_CF_6.6.1 | P6: dms_CF_6.8 | Q6: dms_CF_7.12 | R6: dms_CF_8.1_A | S6: dms_CF_8.1_B | T6: dms_CF_8.1_Neg | U6: dms_CF_4.4.1 | V6: dms_CF_MAIFI_flag | W6: Spare1 | X6: Spare2
B7: ActewAGL Distribution | C7: ACT | D7: Electricity | E7: Distribution | G7: Y | I7: Y | J7: Y | K7: N | L7: Y | M7: N | N7: N | O7: N | P7: Y | Q7: Y | R7: N | S7: Y | T7: Y | U7: N | V7: N | W7: N | X7: N
B8: Ausgrid | C8: NSW | D8: Electricity | E8: Distribution | G8: Y | I8: N | J8: N | K8: N | L8: Y | M8: N | N8: N | O8: N | P8: Y | Q8: Y | R8: N | S8: Y | T8: Y | U8: N | V8: N | W8: N | X8: N
B9: AusNet (D) | C9: Vic | D9: Electricity | E9: Distribution | G9: N | I9: N | J9: N | K9: N | L9: N | M9: N | N9: Y | O9: N | P9: Y | Q9: N | R9: N | S9: N | T9: Y | U9: N | V9: N | W9: N | X9: N
B10: AusNet (T) | C10: Vic | D10: Electricity | E10: Transmission | G10: N | I10: N | J10: N | K10: N | L10: N | M10: N | N10: Y | O10: N | P10: Y | Q10: N | R10: N | S10: N | T10: Y | U10: N | V10: N | W10: N | X10: N
B11: CitiPower | C11: Vic | D11: Electricity | E11: Distribution | G11: N | I11: N | J11: N | K11: N | L11: N | M11: N | N11: Y | O11: N | P11: Y | Q11: N | R11: N | S11: N | T11: Y | U11: N | V11: N | W11: N | X11: N
B12: Directlink | C12: Qld | D12: Electricity | E12: Transmission | G12: N | I12: N | J12: N | K12: N | L12: N | M12: N | N12: Y | O12: N | P12: Y | Q12: N | R12: N | S12: Y | T12: Y | U12: N | V12: N | W12: N | X12: N
B13: ElectraNet | C13: SA | D13: Electricity | E13: Transmission | G13: N | I13: N | J13: N | K13: N | L13: N | M13: N | N13: Y | O13: N | P13: Y | Q13: N | R13: N | S13: Y | T13: Y | U13: N | V13: N | W13: N | X13: N
B14: Endeavour Energy | C14: NSW | D14: Electricity | E14: Distribution | G14: Y | I14: N | J14: N | K14: N | L14: Y | M14: N | N14: N | O14: N | P14: Y | Q14: Y | R14: N | S14: Y | T14: Y | U14: Y | V14: N | W14: N | X14: N
B15: Energex | C15: Qld | D15: Electricity | E15: Distribution | G15: Y | I15: N | J15: N | K15: N | L15: N | M15: N | N15: N | O15: N | P15: Y | Q15: Y | R15: N | S15: Y | T15: Y | U15: Y | V15: N | W15: N | X15: N
B16: Ergon Energy | C16: Qld | D16: Electricity | E16: Distribution | G16: Y | I16: N | J16: N | K16: N | L16: N | M16: N | N16: N | O16: N | P16: Y | Q16: Y | R16: N | S16: Y | T16: Y | U16: N | V16: N | W16: N | X16: N
B17: Essential Energy | C17: NSW | D17: Electricity | E17: Distribution | G17: Y | I17: N | J17: N | K17: N | L17: Y | M17: N | N17: N | O17: N | P17: Y | Q17: Y | R17: N | S17: Y | T17: Y | U17: N | V17: N | W17: N | X17: N
B18: Jemena Electricity | C18: Vic | D18: Electricity | E18: Distribution | G18: N | I18: N | J18: N | K18: N | L18: N | M18: N | N18: Y | O18: N | P18: Y | Q18: N | R18: N | S18: N | T18: Y | U18: N | V18: N | W18: N | X18: N
B19: Murraylink | C19: SA | D19: Electricity | E19: Transmission | G19: N | I19: N | J19: N | K19: N | L19: N | M19: N | N19: Y | O19: N | P19: Y | Q19: N | R19: N | S19: Y | T19: Y | U19: N | V19: N | W19: N | X19: N
B20: Power and Water | C20: NT | D20: Electricity | E20: Distribution | G20: N | I20: N | J20: Y | K20: N | L20: N | M20: Y | N20: Y | O20: Y | P20: Y | Q20: Y | R20: N | S20: Y | T20: Y | U20: N | V20: N | W20: N | X20: N
B21: Powercor Australia | C21: Vic | D21: Electricity | E21: Distribution | G21: N | I21: N | J21: N | K21: N | L21: N | M21: N | N21: Y | O21: N | P21: Y | Q21: N | R21: N | S21: N | T21: Y | U21: N | V21: N | W21: N | X21: N
B22: Powerlink | C22: Qld | D22: Electricity | E22: Transmission | G22: N | I22: N | J22: N | K22: N | L22: N | M22: N | N22: Y | O22: N | P22: Y | Q22: N | R22: N | S22: Y | T22: Y | U22: N | V22: N | W22: N | X22: N
B23: SA Power Networks | C23: SA | D23: Electricity | E23: Distribution | G23: Y | I23: N | J23: N | K23: N | L23: N | M23: N | N23: Y | O23: N | P23: Y | Q23: Y | R23: Y | S23: Y | T23: N | U23: N | V23: N | W23: N | X23: N
B24: TasNetworks (D) | C24: Tas | D24: Electricity | E24: Distribution | G24: Y | I24: N | J24: N | K24: N | L24: N | M24: N | N24: N | O24: N | P24: Y | Q24: Y | R24: N | S24: Y | T24: Y | U24: N | V24: N | W24: N | X24: N
B25: TasNetworks (T) | C25: Tas | D25: Electricity | E25: Transmission | G25: N | I25: N | J25: N | K25: N | L25: N | M25: N | N25: Y | O25: N | P25: Y | Q25: N | R25: N | S25: Y | T25: Y | U25: N | V25: N | W25: N | X25: N
B26: TransGrid | C26: NSW | D26: Electricity | E26: Transmission | G26: N | I26: N | J26: N | K26: N | L26: N | M26: N | N26: Y | O26: N | P26: Y | Q26: N | R26: N | S26: Y | T26: Y | U26: N | V26: N | W26: N | X26: N
B27: United Energy | C27: Vic | D27: Electricity | E27: Distribution | G27: N | I27: N | J27: N | K27: N | L27: N | M27: N | N27: Y | O27: N | P27: Y | Q27: N | R27: N | S27: N | T27: Y | U27: N | V27: N | W27: N | X27: N
B30: Confidential
B31: Amended
B33: Worksheet 6.2 STPIS reliability
B34: Formula | F34: Applied to:
B36: =INDEX(dms_CBD_flag,MATCH(dms_TradingName,dms_TradingName_List))="NO" | F36: $D$11,$D$17,$D$23,$D$33,$D$39,$D$45,$D$55,$D$61,$D$67,$D$77,$D$83,$D$89
B37: =INDEX(dms_Urban_flag,MATCH(dms_TradingName,dms_TradingName_List))="NO" | F37: $D$12,$D$18,$D$24,$D$56,$D$62,$D$78,$D$68,$D$84
B38: =INDEX(dms_ShortRural_flag,MATCH(dms_TradingName,dms_TradingName_List))="NO" | F38: $D$13,$D$19,$D$25,$D$57,$D$63,$D$69,$D$79,$D$85
B39: =INDEX(dms_LongRural_flag,MATCH(dms_TradingName,dms_TradingName_List))="NO" | F39: $D$14,$D$20,$D$26,$D$58,$D$64,$D$65,$D$70,$D$71,$D$80,$D$86
B40: =INDEX(dms_FeederType_5_flag,MATCH(dms_TradingName,dms_TradingName_List))="NO" | F40: $D$87,$D$81,$D$71,$D$65,$D$59,$D$49,$D$43,$D$37,$D$21,$D$15
B41: =dms_MAIFI_Flag="No" | F41: $D$55:$D$72
B44: Business & other details
B45: =(INDEX(dms_Model_Span,MATCH(dms_Model,dms_Model_List))>1)
B46: =(INDEX(dms_Model_Span,MATCH(dms_Model,dms_Model_List))=1)
B49: STYLES IN USE
C50: dms_1
C51: dms_2
C52: dms_3
C53: dms_4
C54: dms_5
C55: dms_NUM
C56: dms_NUM%
C57: dms_Row_Locked
C58: dms_Row1
C59: dms_Row2
C60: dms_T1
C61: dms_T2
C62: dms_BH
C63: dms_BY1
C64: dms_BY2
C65: dms_GH
C66: dms_GY1
C67: dms_GY2
C126: 0
C127: =IFERROR(IF(dms_Model="ARR",(MAX(0,dms_0608_LastRow-dms_0608_OffsetRows)),"not an ARR"),"0") -> not an ARR

Sheet AER NRs (hidden)
B1: AER NAMED RANGES
B3: DROP DOWN SELECTORS USED IN WORKBOOKS
B5: COVER SHEET | C5: dms_DataQuality_List | D5: dms_Confid_status_List
C6: -- select -- | D6: -- select --
C7: Actual | D7: Public
C8: Estimate | D8: Confidential
C9: Consolidated
C12: For all files either AER or business needs to be able to specify the type of submission | D12: For PTRM & RFM templates we must provide a choice in case they change their form of control - otherwise it is drawn from the business specific lookup table above.
C13: dms_SourceList | D13: dms_FormControl_Choices
C14: -- select -- | D14: Revenue cap
C15: After appeal | D15: Revenue yield
C16: Draft decision | D16: Weighted average price cap
C17: Final decision
C18: PTRM update 1
C19: PTRM update 2
C20: PTRM update 3
C21: PTRM update 4
C22: PTRM update 5
C23: PTRM update 6
C24: PTRM update 7
C25: Regulatory proposal
C26: Reporting
C27: Revised regulatory proposal
K30: This is used to create an image to insert on 6.3 STPIS sheet - not for dropdown lists. | N30: GAS
B31: CA & RESET RINS DNSP | C31: dms_DNSP_020301_SubstationType | D31: dms_DNSP_020301_ProjectType | E31: dms_DNSP_020301_ProjectTrigger | F31: dms_DNSP_020302_ProjectType | G31: dms_DNSP_020302_ProjectTrigger | H31: dms_STPIS_Exclusion_List | I31: dms_Reason_Interruption | J31: dms_Reason_Interruption_Detailed | K31: Reason for interruption | N31: dms_N0205_AssetType
C32: Subtransmission substation | D32: New substation establishment | E32: Demand growth | F32: New line on new route - single circuit | G32: Demand growth | H32: Weather | I32: Animal | J32: Animal impact | K32: Animal | L32: Animal impact | N32: Cast Iron
C33: Zone substation | D33: Substation upgrade - capacity | E33: Voltage issues | F33: New line on new route - dual circuit | G33: Voltage issues | H33: Equipment failure | I33: Asset failure | J33: Animal nesting/burrowing, etc and other | L33: Animal nesting/burrowing, etc and other | N33: PVC
C34: Switching station | D34: Substation upgrade - voltage | E34: Reactive power issue | F34: New line on new route - other | G34: Reactive power issue | H34: Operational error | I34: Other | J34: Other | L34: Other | N34: Polyamide
C35: Other | D35: Other | E35: Fault level issues | F35: Line rebuild over existing route - single circuit | G35: Fault level issues | H35: Vegetation | I35: Overloads | J35: LV | K35: Asset failure | L35: LV | N35: High density polyethylene (80)
E36: Safety | F36: Line rebuild over existing route - dual circuit | G36: Net market benefit | H36: Animals | I36: Planned | J36: Distribution substation | L36: Distribution substation | N36: High density polyethylene (100)
E37: Environment | F37: Reconductor - Single circuit | G37: Safety | H37: Third party impacts | I37: Network business | J37: HV | L37: HV | N37: High density polyethylene (250)
E38: Other | F38: Reconductor - Dual circuit | G38: Environment | H38: Transmission failure | I38: Third party | J38: Zone substation | L38: Zone substation | N38: High density polyethylene (575)
F39: Reconductor - Other | G39: Other | H39: Load shedding | I39: Unknown | J39: Subtransmission | L39: Subtransmission | N39: Medium density polyethylene
F40: Line upgrade - raising/retensoring | H40: Inter-distributor connection failure | I40: Vegetation | J40: insert description of 'other' | K40: Other | L40: insert description of 'other' | N40: Unprotected steel
F41: Line upgrade - voltage upgrade | H41: Other | I41: Weather | J41: Network error | K41: Overloads | N41: Protected steel
F42: Line upgrade - capacity | I42: 2 - STPIS Exclusion (3.3)(a) | J42: Switching and protection error | K42: Planned | N42: Other
F43: String spare circuit | I43: 3 - STPIS Exclusion (3.3)(a) | J43: Fire | K43: Network business | L43: Network error
F44: Other | I44: 4 - STPIS Exclusion (3.3)(a) | J44: Other | L44: Switching and protection error
I45: 5 - STPIS Exclusion (3.3)(a) | J45: Dig-in | K45: Third party | L45: Fire
I46: 6 - STPIS Exclusion (3.3)(a) | J46: Unauthorised access | L46: Other
I47: 7 - STPIS Exclusion (3.3)(a) | J47: Vehicle impact | L47: Dig-in
J48: Unknown | L48: Unauthorised access
J49: Blow-in/Fall-in - NSP responsibility | L49: Vehicle impact
J50: Grow-in - NSP responsibility | K50: Unknown | L50: Unknown
J51: Blow-in/Fall-in - Other responsible party | K51: Vegetation | L51: Blow-in/Fall-in - NSP responsibility
J52: Grow-in - Other responsible party | L52: Grow-in - NSP responsibility
L53: Blow-in/Fall-in - Other responsible party
L54: Grow-in - Other responsible party
K55: Weather
K56: 2 - STPIS Exclusion (3.3)(a)
K57: 3 - STPIS Exclusion (3.3)(a)
K58: 4 - STPIS Exclusion (3.3)(a)
K59: 5 - STPIS Exclusion (3.3)(a)
K60: 6 - STPIS Exclusion (3.3)(a)
K61: 7 - STPIS Exclusion (3.3)(a)
B64: CA & RESET RINS TNSP | C64: dms_TNSP_0203_SubstationType | D64: dms_TNSP_020301_ProjectType | E64: dms_TNSP_020301_ProjectTrigger | F64: dms_TNSP_020302_ProjectType | G64: dms_TNSP_0203_ProjectTrigger
C65: Terminal station | D65: New substation establishment | E65: Demand growth | F65: New line on new route - single circuit | G65: Demand growth
C66: Switching station | D66: Capacity upgrade | E66: Voltage issues | F66: New line on new route - dual circuit | G66: Voltage issues
C67: Transmission substation | D67: Voltage upgrade | E67: Reactive power issue | F67: New line on new route - other | G67: Reactive power issue
C68: Other | D68: Other | E68: Fault level issues | F68: Line rebuild over existing route - single circuit | G68: Fault level issues
E69: Net market benefit | F69: Line rebuild over existing route - dual circuit | G69: Net market benefit
E70: Safety | F70: Reconductor - Single circuit | G70: Safety
E71: Environment | F71: Reconductor - Dual circuit | G71: Environment
E72: Other | F72: Reconductor - Other | G72: Other
F73: Line upgrade - raising/retensoring
F74: Line upgrade - voltage upgrade
F75: Line upgrade - capacity
F76: String spare circuit
F77: Other
B81: NAMED RANGES USED IN ETL PROCESS
B83: CA & RESET RINS DNSP ONLY | C83: dms_020303_01_UOM | D83: dms_020501_01_UOM | E83: dms_020501_02_UOM | F83: dms_020501_03_UOM | G83: dms_020501_04_UOM | H83: dms_020701_01_UOM | I83: dms_020701_02_UOM | J83: dms_020701_01_Rows | K83: dms_040102_01_UOM | L83: dms_040102_04_UOM | M83: dms_S140101_UOM | O83: dms_S140201_UOM
C84: Circuit line length in km | D84: 0's | E84: 0's | F84: 0's | G84: 0's | H84: km | I84: km | J84: Route line length within zone | K84: 0's | L84: days | M84: number | O84: number per km
C85: Circuit line length in km | D85: 0's | E85: 0's | F85: 0's | G85: 0's | H85: 0's | I85: 0's | J85: Number of maintenance spans | K85: 0's | L85: 0's | M85: number | O85: number
C86: Circuit line length in km | D86: MVA added | E86: MVA added | F86: MVA added | G86: MVA added | H86: km | I86: km | J86: Total length of maintenance spans | K86: 0's | L86: $0s | M86: number | O86: number
C87: Circuit line length in km | D87: 0's | E87: 0's | F87: 0's | G87: 0's | H87: km | I87: km | J87: Length of vegetation corridors | K87: $0s | L87: 0's | M87: km
C88: Number | D88: total spend $0s | E88: total spend $0s | F88: total spend $0s | G88: total spend $0s | H88: 0's | I88: 0's | J88: Average number of trees per maintenance span
C89: Number | D89: net circuit km added | E89: net circuit km added | F89: net circuit km added | G89: net circuit km added | H89: years | I89: years | J89: Average frequency of cutting cycle
C90: Number | D90: total spend $0s | E90: total spend $0s | F90: total spend $0s | G90: total spend $0s
D91: net circuit km added | E91: net circuit km added | F91: net circuit km added | G91: net circuit km added
D92: total spend $0s | E92: total spend $0s | F92: total spend $0s | G92: total spend $0s
D93: 0's | F93: $0s
D94: 0's
D95: 0's
D96: $0s
B99: CA & RESET RINS TNSP ONLY | C99: dms_020701_01_UOM
C100: km
C101: 0's
C102: km
C103: 0's
C104: km
C105: metres
C106: years
B109: CA & RESET RINS DNSP & TNSP | C109: dms_020603_01_UOM
C110: 0's
C111: 0's
C112: 0's
C113: 0's
C114: (per cent)
B117: EB & RESET RINS DNSP ONLY | C117: dms_030601_01_UOM | D117: dms_030601_02_UOM | E117: dms_030701_01_UOM | F117: dms_030702_01_UOM | G117: dms_030703_01_UOM
C118: minutes/customer | D118: minutes/customer | E118: Customer / km | F118: % | G118: km
C119: minutes/customer | D119: minutes/customer | E119: MWh/customer | F119: Number of spans
C120: interruptions/customer | D120: interruptions/customer | E120: kVA / customer | F120: Number of spans
C121: interruptions/customer | D121: interruptions/customer | F121: Number of spans
F122: Number of spans
F123: Years
F124: Years
F125: Trees
F126: Trees
F127: Defects
F128: Defects
F129: Spans
F130: km
F131: Spans
C133: WHEN INSERTING COVER SHEET INTO A TNSP FILE - APPLY THESE NAMED RANGES
B134: EB & RESET RINS TNSP ONLY | C134: dms_030601_01_UOM | E134: dms_030701_01_UOM | F134: dms_030702_01_UOM
C135: % | E135: Number of spans | F135: km
C136: number | E136: Years | F136: %
C137: number | E137: Trees | F137: km
C138: % | E138: Defects | F138: number
C139: number | E139: Number of spans
C140: number | E140: km
C141: % | E141: km
C142: number | E142: Number of spans
C143: number
C144: %
C145: number
C146: %
C147: number
C148: %
C149: number
B151: EB & RESET RINS DNSP & TNSP | C151: dms_EB_RAB_PIT
C152: Beginning of year
C153: End of year
C154: End of year
C155: End of year
C156: End of year
C157: End of year
B159: ARR DNSP ONLY | C159: dms_030605_UOM | D159: dms_03060703_UOM | E159: Spare | F159: Spare
C160: number | D160: number
C161: number | D161: number
C162: number | D162: number
C163: number | D163: number
C164: number | D164: (per cent)
C165: number
C166: number
C167: number
C168: number
C169: number
C170: number
C171: number
C172: (per cent)
C173: (per cent)
B175: RFM | C175: dms_Beg | D175: dms_Mid | E175: dms_End
C176: Beginning of year | D176: Mid year | E176: End of Year
B178: PTRM | C178: dms_PTRM_RAB_PIT | D178: dms_PTRM_TAB_PIT | E178: DMS_Xfactor
C179: Beginning of year | D179: Beginning of year | E179: x factors
C180: End of year | D180: End of year
C181: End of year | D181: End of year
C182: End of year | D182: End of year
C183: End of year
B186: STPIS & MIC NAMED RANGES
B188: These "row descriptions" are the column headings in the various templates but become row descriptions in the ETL process
B190: Table 6.3 sustained interruptions - row descriptions | C190: dms_060301_CustNo_Affected_Row | D190: dms_060301_Avg_Duration_Sustained_Int_Row | E190: dms_060301_Effect_unplanned_SAIDI_Row | F190: dms_060301_Effect_unplanned_SAIFI_Row
C191: Number of customers affected by the interruption | D191: Average duration of sustained customer interruption | E191: Effect on unplanned SAIDI | F191: Effect on unplanned SAIFI
B194: Table 6.1 telephone answering - row descriptions and start date | C194: dms_060101_Rows | D194: dms_060102_Rows | E194: dms_060101_StartDateTxt
C195: Total number of calls (after removing excluded events) | D195: Number of calls answered within 30 seconds (after excluding excluded events) | E195: =dms_060701_StartDateTxt -> 1-Jan-2016
B198: Table 6.8.1 - row descriptions | C198: dms_060801_01_Rows | D198: dms_060801_02_Rows | E198: dms_060801_03_Rows | F198: dms_060801_04_Rows
C199: Number of interruptions | D199: Duration of interruptions | E199: Total unplanned minutes off supply | F199: Effect on unplanned MAIFI
B202: Table 7.9.4 - market impact component - row descriptions | C202: dms_070904_01_Rows | D202: without exclusions | E202: with exclusions
B205: These headings (Lists) are determined from the INDEX/MATCH function on the NSP selected on the Business & other details sheet
B207: Table 6.7.1 - daily performance data - unplanned - MAIFI -- row descriptions and header named range values | C207: dms_060701_Feeder_Header_Lvl4 | D207: =INDEX(dms_FeederName_1,MATCH(dms_TradingName,dms_TradingName_List)) -> CBD | E207: =INDEX(dms_FeederName_1,MATCH(dms_TradingName,dms_TradingName_List)) -> CBD | F207: =INDEX(dms_FeederName_2,MATCH(dms_TradingName,dms_TradingName_List)) -> Urban | G207: =INDEX(dms_FeederName_2,MATCH(dms_TradingName,dms_TradingName_List)) -> Urban | H207: =INDEX(dms_FeederName_3,MATCH(dms_TradingName,dms_TradingName_List)) -> Short rural | I207: =INDEX(dms_FeederName_3,MATCH(dms_TradingName,dms_TradingName_List)) -> Short rural | J207: =INDEX(dms_FeederName_4,MATCH(dms_TradingName,dms_TradingName_List)) -> Long rural | K207: =INDEX(dms_FeederName_4,MATCH(dms_TradingName,dms_TradingName_List)) -> Long rural | L207: =IF((INDEX(dms_FeederName_5,MATCH(dms_TradingName,dms_TradingName_List))=0),"Network",(INDEX(dms_FeederName_5,MATCH(dms_TradingName,dms_TradingName_List)))) -> Network | M207: =IF((INDEX(dms_FeederName_5,MATCH(dms_TradingName,dms_TradingName_List))=0),"Network",(INDEX(dms_FeederName_5,MATCH(dms_TradingName,dms_TradingName_List)))) -> Network | N207: Network | O207: Network
C209: dms_060701_Rows | D209: All events | E209: After removing excluded events | F209: All events | G209: After removing excluded events | H209: All events | I209: After removing excluded events | J209: All events | K209: After removing excluded events | L209: All events | M209: After removing excluded events | N209: All events | O209: After removing excluded events
D210: the number of column headings changes from 10 to 12 depending on the number of feeder categories for the NSP
C212: dms_0603_FeederList | D212: =INDEX(dms_FeederName_1,MATCH(dms_TradingName,dms_TradingName_List)) -> CBD | E212: =INDEX(dms_FeederName_2,MATCH(dms_TradingName,dms_TradingName_List)) -> Urban | F212: =INDEX(dms_FeederName_3,MATCH(dms_TradingName,dms_TradingName_List)) -> Short rural | G212: =INDEX(dms_FeederName_4,MATCH(dms_TradingName,dms_TradingName_List)) -> Long rural
B215: Use these to add to specific worksheets in existing files | C215: Use these to add to specific worksheets in existing files
B218: ARRs 6.7 STPIS daily performance | C218: dms_060101_Values | D218: dms_060102_Values | E218: dms_060701_Values
C219: dms_LeapYear
B222: ARR's 6.8 STPIS exclusions | C222: dms_060801_Event_Date | D222: dms_060801_OutageID | E222: dms_060801_FeederID | F222: dms_060801_FeederClass | G222: dms_060801_CauseID | H222: dms_060801_01_Values | I222: dms_060801_02_Values | J222: dms_060801_03_Values | K222: dms_060801_Excl_Cat | L222: dms_060801_04_Values
C223: dms_060801_StartCell
B226: CA 6.3 sustained interruptions | C226: dms_060301_Event_Date | D226: dms_060301_Event_Time | E226: dms_060301_AssetID | F226: dms_060301_FeederClass | G226: dms_060301_Reason | H226: dms_060301_DetailedReason | I226: dms_060301_CustNo_Affected_Values | J226: dms_060301_Avg_Duration_Sustained_Int_Values | K226: dms_060301_Effect_unplanned_SAIDI_Values | L226: dms_060301_Effect_unplanned_SAIFI_Values | M226: dms_060301_MED

Sheet AER lookups (hidden)
B1: AER LOOKUP TABLES
B3: Data in these columns used for data validation and database purposes.
B4: Date last modified: | C4: 2017-01-16 | D4: added (Albury and Victora) for AGN
C5: 2016-10-17 | D5: updated TransGrid's correct legal name, corrected TasNetworks (T) to June financial year
C6: 2017-02-01 | D6: inserted Power and Water, added NRs (dms_FeederCat_1 and dms_FeederCat_2)
C7: 2017-03-03 | D7: inserted AEMO as a business | AC7: FOR ELECTRICITY BUSINESSES ONLY
C8: 2018-03-28 | D8: major changes to accommodate STPIS
C9: Template Version | D9: 5 | AC9: Feeder Types | AG9: TasNetworks (D) | AH9: MAIFI flag | AI9: Feeder Names
AC11: CBD | AD11: Urban | AE11: Short rural | AF11: long rural | AG11: EXTRA
B12: dms_TradingName_List | C12: dms_TradingNameFull_List | D12: dms_ABN_List | E12: dms_JurisdictionList | F12: dms_Sector_List | G12: dms_Segment_List | H12: dms_FormControl_List | I12: dms_RPT_List | J12: dms_RPTMonth_List | K12: dms_CRCPlength_List | L12: dms_FRCPlength_List | M12: dms_PRCPlength_List | N12: dms_663_List | O12: dms_DeterminationRef_List | P12: dms_Addr1_List | Q12: dms_Addr2_List | R12: dms_Suburb_List | S12: dms_State_List | T12: dms_PostCode_List | U12: dms_PAddr1_List | V12: dms_PAddr2_List | W12: dms_PSuburb_List | X12: dms_PState_List | Y12: dms_PPostCode_List | Z12: dms_ContactName1_List | AA12: dms_ContactPh1_List | AB12: dms_ContactEmail_List | AC12: dms_CBD_flag | AD12: dms_Urban_flag | AE12: dms_ShortRural_flag | AF12: dms_LongRural_flag | AG12: dms_FeederType_5_flag | AH12: dms_MAIFI_flag_List | AI12: dms_FeederName_1 | AJ12: dms_FeederName_2 | AK12: dms_FeederName_3 | AL12: dms_FeederName_4 | AM12: dms_FeederName_5 | AN12: dms_Public_Lighting_List | AO12: Column1
B13: Amadeus | C13: APT Pipelines (NT) Pty Ltd t/a Amadeus | D13: 39009737393 | E13: NT | F13: Gas | G13: Transmission | H13: Weighted average price cap | I13: Financial | J13: June | K13: 5 | L13: 5 | M13: 5 | N13: x | O13: n/a | P13: Level 19, HSBC Building | Q13: 580 George Street | R13: SYDNEY | S13: NSW | T13: 2000 | U13: Level 19, HSBC Building | V13: 580 George Street | W13: SYDNEY | X13: NSW | Y13: 2000 | Z13: Alexandra Curran | AA13: 02 9275 0020 | AB13: alexandra.curran@apa.com.au | AC13: NO | AD13: NO | AE13: NO | AF13: NO | AG13: NO | AH13: - | AI13: CBD | AJ13: Urban | AK13: Short rural | AL13: Long rural | AN13: NO | AO13: Amadeus
B14: APA VTS | C14: APA VTS Australia (Operations) Pty Ltd | D14: 65 083 009 278 | E14: Vic | F14: Gas | G14: Transmission | H14: Weighted average price cap | I14: Calendar | J14: December | K14: 5 | L14: 5 | M14: 5 | N14: x | P14: Level 19, HSBC Building | Q14: 580 George Street | R14: SYDNEY | S14: NSW | T14: 2000 | U14: PO Box R41 | W14: ROYAL EXCHANGE | X14: NSW | Y14: 1225 | Z14: Alexandra Curran | AA14: 02 9275 0020 | AB14: alexandra.curran@apa.com.au | AC14: NO | AD14: NO | AE14: NO | AF14: NO | AG14: NO | AH14: - | AI14: CBD | AJ14: Urban | AK14: Short rural | AL14: Long rural | AN14: NO | AO14: APA GasNet
B15: Australian Transmission Co. (Gas) | C15: Australian Transmission Co. (Gas) | D15: 11222333444 | E15: - | F15: Gas | G15: Transmission | H15: Revenue cap | I15: Financial | J15: June | K15: 5 | L15: 5 | M15: 5 | N15: 5 | O15: transmission determination | P15: 123 Straight Street | R15: SYDNEY | S15: NSW | T15: 2000 | U15: PO Box 123 | W15: SYDNEY | X15: NSW | Y15: 2000 | Z15: NO | AA15: NO | AB15: NO | AC15: NO | AD15: NO | AE15: - | AF15: CBD | AG15: Urban | AH15: Short rural | AI15: Long rural | AK15: NO | AL15: Australian Transmission Co. (Gas)
B16: Central Ranges Pipeline (T) | C16: Central Ranges Pipeline Pty Ltd | D16: 108218355 | E16: NSW | F16: Gas | G16: Transmission | H16: Weighted average price cap | I16: Financial | J16: June | K16: 14 | L16: 5 | M16: 5 | N16: 5 | O16: transmission determination | P16: Level 19 | Q16: 580 George Street | R16: SYDNEY | S16: NSW | T16: 2000 | U16: PO Box R41 | W16: ROYAL EXCHANGE | X16: NSW | Y16: 1225 | Z16: Scott Young | AA16: 02 9275 0031 | AB16: scott.young@apa.com.au | AC16: NO | AD16: NO | AE16: NO | AF16: NO | AG16: NO | AH16: - | AI16: CBD | AJ16: Urban | AK16: Short rural | AL16: Long rural | AN16: NO
B17: Roma to Brisbane Pipeline | C17: APT Petroleum Pipelines Limited t/a Roma to Brisbane Pipeline | D17: 009 737 393 | E17: Qld | F17: Gas | G17: Transmission | H17: Weighted average price cap | I17: Financial | J17: June | K17: 5 | L17: 5 | M17: 5 | N17: x | O17: n/a | P17: 580 George Street | R17: SYDNEY | S17: NSW | T17: 2000 | U17: PO Box R41 | W17: ROYAL EXCHANGE | X17: NSW | Y17: 1225 | Z17: Mark Allen | AA17: 02 9275 0010 | AB17: mark.allen@apa.com.au | AC17: NO | AD17: NO | AE17: NO | AF17: NO | AG17: NO | AH17: - | AI17: CBD | AJ17: Urban | AK17: Short rural | AL17: Long rural | AN17: NO | AO17: Roma to Brisbane Pipeline
B22: The Reg Year Ending (dms_RYE) must be set to the last year of the regulatory period. For forecast data is is usually (FRCP_y5) for actual it is a single year (CRY). For historical actual data the RYE will need to be set manually in the business details sheet by setting the dms_Multiyear_flag to 1 and putting the correct value in 'dms_Specified_FinalYear. See cells C67:C68
B23: dms_Model_List | C23: dms_Model_Name_Format1 | D23: dms_Worksheet_List | E23: dms_Model_Span_List
B24: ARR | C24: Annual Reporting | D24: =IF(dms_MultiYear_ResponseFlag="yes","NEW HISTORICAL ANNUAL REPORTING","ANNUAL REPORTING") -> ANNUAL REPORTING | E24: 1
B25: CA | C25: Category Analysis | D25: =IF(dms_MultiYear_ResponseFlag="yes","NEW HISTORICAL CATEGORY ANALYSIS","CATEGORY ANALYSIS") -> CATEGORY ANALYSIS | E25: 1
B26: CESS | C26: Capitlal Expenditure | D26: CAPITLAL EXPENDITURE SHARING SCHEMING | E26: 5
B27: CPI | C27: CPI | D27: CPI | E27: 5
B28: EB | C28: Economic Benchmarking | D28: =IF(dms_MultiYear_ResponseFlag="yes","NEW HISTORICAL ECONOMIC BENCHMARKING","ECONOMIC BENCHMARKING") -> ECONOMIC BENCHMARKING | E28: 1
B29: Pricing | C29: Pricing Proposal | D29: PRICING PROPOSAL | E29: 5
B30: PTRM | C30: Post Tax Revenue Model | D30: POST TAX REVENUE MODEL | E30: 5
B31: Reset | C31: Regulatory Reporting (Reset) | D31: REGULATORY REPORTING STATEMENT | E31: 5
B32: RFM | C32: Roll Forward Model | D32: ROLL FORWARD MODEL | E32: 5
B33: WACC | C33: Weighted Average Cost of Capital | D33: WEIGHTED AVERAGE COST OF CAPITAL | E33: 1
B37: Financial | C37: Calendar | E37: PREVIOUS | G37: CURRENT | I37: FORTHCOMING
B38: 1987-88 | C38: 1988 | D38: PRCP_y1 | E38: =INDEX(INDIRECT(dms_RPT),dms_PRCP_start_row) -> 2013 | F38: CRCP_y1 | G38: =INDEX(INDIRECT(dms_RPT),dms_CRCP_start_row) -> 2018 | H38: =FRCP_y1 -> 2023 | I38: =INDEX(INDIRECT(dms_RPT),dms_FRCP_start_row) -> 2023
B39: 1988-89 | C39: 1989 | D39: PRCP_y2 | E39: =INDEX(INDIRECT(dms_RPT),dms_PRCP_start_row+1) -> 2014 | F39: CRCP_y2 | G39: =INDEX(INDIRECT(dms_RPT),dms_CRCP_start_row+1) -> 2019 | H39: FRCP_y2 | I39: =INDEX(INDIRECT(dms_RPT),dms_FRCP_start_row+1) -> 2024
B40: 1989-90 | C40: 1990 | D40: PRCP_y3 | E40: =INDEX(INDIRECT(dms_RPT),dms_PRCP_start_row+2) -> 2015 | F40: CRCP_y3 | G40: =INDEX(INDIRECT(dms_RPT),dms_CRCP_start_row+2) -> 2020 | H40: FRCP_y3 | I40: =INDEX(INDIRECT(dms_RPT),dms_FRCP_start_row+2) -> 2025
B41: 1990-91 | C41: 1991 | D41: PRCP_y4 | E41: =INDEX(INDIRECT(dms_RPT),dms_PRCP_start_row+3) -> 2016 | F41: CRCP_y4 | G41: =INDEX(INDIRECT(dms_RPT),dms_CRCP_start_row+3) -> 2021 | H41: FRCP_y4 | I41: =INDEX(INDIRECT(dms_RPT),dms_FRCP_start_row+3) -> 2026
B42: 1991-92 | C42: 1992 | D42: PRCP_y5 | E42: =INDEX(INDIRECT(dms_RPT),dms_PRCP_start_row+4) -> 2017 | F42: CRCP_y5 | G42: =INDEX(INDIRECT(dms_RPT),dms_CRCP_start_row+4) -> 2022 | H42: FRCP_y5 | I42: =INDEX(INDIRECT(dms_RPT),dms_FRCP_start_row+4) -> 2027
B43: 1992-93 | C43: 1993 | D43: PRCP_y6 | E43: =INDEX(INDIRECT(dms_RPT),dms_PRCP_start_row+5) -> 2018 | F43: CRCP_y6 | G43: =INDEX(INDIRECT(dms_RPT),dms_CRCP_start_row+5) -> 2023 | H43: FRCP_y6 | I43: =INDEX(INDIRECT(dms_RPT),dms_FRCP_start_row+5) -> 2028
B44: 1993-94 | C44: 1994 | D44: PRCP_y7 | E44: =INDEX(INDIRECT(dms_RPT),dms_PRCP_start_row+6) -> 2019 | F44: CRCP_y7 | G44: =INDEX(INDIRECT(dms_RPT),dms_CRCP_start_row+6) -> 2024 | H44: FRCP_y7 | I44: =INDEX(INDIRECT(dms_RPT),dms_FRCP_start_row+6) -> 2029
B45: 1994-95 | C45: 1995 | D45: PRCP_y8 | E45: =INDEX(INDIRECT(dms_RPT),dms_PRCP_start_row+7) -> 2020 | F45: CRCP_y8 | G45: =INDEX(INDIRECT(dms_RPT),dms_CRCP_start_row+7) -> 2025 | H45: FRCP_y8 | I45: =INDEX(INDIRECT(dms_RPT),dms_FRCP_start_row+7) -> 2030
B46: 1995-96 | C46: 1996 | D46: PRCP_y9 | E46: =INDEX(INDIRECT(dms_RPT),dms_PRCP_start_row+8) -> 2021 | F46: CRCP_y9 | G46: =INDEX(INDIRECT(dms_RPT),dms_CRCP_start_row+8) -> 2026 | H46: FRCP_y9 | I46: =INDEX(INDIRECT(dms_RPT),dms_FRCP_start_row+8) -> 2031
B47: 1996-97 | C47: 1997 | D47: PRCP_y10 | E47: =INDEX(INDIRECT(dms_RPT),dms_PRCP_start_row+9) -> 2022 | F47: CRCP_y10 | G47: =INDEX(INDIRECT(dms_RPT),dms_CRCP_start_row+9) -> 2027 | H47: FRCP_y10 | I47: =INDEX(INDIRECT(dms_RPT),dms_FRCP_start_row+9) -> 2032
B48: 1997-98 | C48: 1998 | D48: PRCP_y11 | E48: =INDEX(INDIRECT(dms_RPT),dms_PRCP_start_row+10) -> 2023 | F48: CRCP_y11 | G48: =INDEX(INDIRECT(dms_RPT),dms_CRCP_start_row+10) -> 2028 | H48: FRCP_y11 | I48: =INDEX(INDIRECT(dms_RPT),dms_FRCP_start_row+10) -> 2033
B49: 1998-99 | C49: 1999 | D49: PRCP_y12 | E49: =INDEX(INDIRECT(dms_RPT),dms_PRCP_start_row+11) -> 2024 | F49: CRCP_y12 | G49: =INDEX(INDIRECT(dms_RPT),dms_CRCP_start_row+11) -> 2029 | H49: FRCP_y12 | I49: =INDEX(INDIRECT(dms_RPT),dms_FRCP_start_row+11) -> 2034
B50: 1999-00 | C50: 2000 | D50: PRCP_y13 | E50: =INDEX(INDIRECT(dms_RPT),dms_PRCP_start_row+12) -> 2025 | F50: CRCP_y13 | G50: =INDEX(INDIRECT(dms_RPT),dms_CRCP_start_row+12) -> 2030 | H50: FRCP_y13 | I50: =INDEX(INDIRECT(dms_RPT),dms_FRCP_start_row+12) -> 2035
B51: 2000-01 | C51: 2001 | D51: PRCP_y14 | E51: =INDEX(INDIRECT(dms_RPT),dms_PRCP_start_row+13) -> 2026 | F51: CRCP_y14 | G51: =INDEX(INDIRECT(dms_RPT),dms_CRCP_start_row+13) -> 2031 | H51: FRCP_y14 | I51: =INDEX(INDIRECT(dms_RPT),dms_FRCP_start_row+13) -> 2036
B52: 2001-02 | C52: 2002 | D52: PRCP_y15 | E52: =INDEX(INDIRECT(dms_RPT),dms_PRCP_start_row+14) -> 2027 | F52: CRCP_y15 | G52: =INDEX(INDIRECT(dms_RPT),dms_CRCP_start_row+14) -> 2032 | H52: FRCP_y15 | I52: =INDEX(INDIRECT(dms_RPT),dms_FRCP_start_row+14) -> 2037
B53: 2002-03 | C53: 2003 | D53: PRCP_y16 | E53: =INDEX(INDIRECT(dms_RPT),dms_PRCP_start_row+15) -> 2028 | F53: CRCP_y16 | G53: =INDEX(INDIRECT(dms_RPT),dms_CRCP_start_row+15) -> 2033 | H53: FRCP_y16 | I53: =INDEX(INDIRECT(dms_RPT),dms_FRCP_start_row+15) -> 
B54: 2003-04 | C54: 2004
B55: 2004-05 | C55: 2005
B56: 2005-06 | C56: 2006 | E56: CRY - FRY
B57: 2006-07 | C57: 2007 | D57: dms_y1 | E57: =IFERROR(INDEX(INDIRECT(dms_RPT),dms_CRY_start_row),0) -> 2021
B58: 2007-08 | C58: 2008 | D58: dms_y2 | E58: =IFERROR(INDEX(INDIRECT(dms_RPT),dms_CRY_start_row+1),0) -> 2022
B59: 2008-09 | C59: 2009 | D59: dms_y3 | E59: =IFERROR(INDEX(INDIRECT(dms_RPT),dms_CRY_start_row+2),0) -> 2023
B60: 2009-10 | C60: 2010 | D60: dms_y4 | E60: =IFERROR(INDEX(INDIRECT(dms_RPT),dms_CRY_start_row+3),0) -> 2024
B61: 2010-11 | C61: 2011 | D61: dms_y5 | E61: =IFERROR(INDEX(INDIRECT(dms_RPT),dms_CRY_start_row+4),0) -> 2025
B62: 2011-12 | C62: 2012 | D62: dms_y6 | E62: =IFERROR(INDEX(INDIRECT(dms_RPT),dms_CRY_start_row+5),0) -> 2026
B63: 2012-13 | C63: 2013 | D63: dms_y7 | E63: =IFERROR(INDEX(INDIRECT(dms_RPT),dms_CRY_start_row+6),0) -> 2027
B64: 2013-14 | C64: 2014 | D64: dms_y8 | E64: =IFERROR(INDEX(INDIRECT(dms_RPT),dms_CRY_start_row+7),0) -> 2028
B65: 2014-15 | C65: 2015 | D65: dms_y9 | E65: =IFERROR(INDEX(INDIRECT(dms_RPT),dms_CRY_start_row+8),0) -> 2029
B66: 2015-16 | C66: 2016 | D66: dms_y10 | E66: =IFERROR(INDEX(INDIRECT(dms_RPT),dms_CRY_start_row+9),0) -> 2030
B67: 2016-17 | C67: 2017 | D67: dms_y11 | E67: =IFERROR(INDEX(INDIRECT(dms_RPT),dms_CRY_start_row+10),0) -> 2031
B68: 2017-18 | C68: 2018 | D68: dms_y12 | E68: =IFERROR(INDEX(INDIRECT(dms_RPT),dms_CRY_start_row+11),0) -> 2032
B69: 2018-19 | C69: 2019 | D69: dms_y13 | E69: =IFERROR(INDEX(INDIRECT(dms_RPT),dms_CRY_start_row+12),0) -> 2033
B70: 2019-20 | C70: 2020 | D70: dms_y14 | E70: =IFERROR(INDEX(INDIRECT(dms_RPT),dms_CRY_start_row+13),0) -> 2034
B71: 2020-21 | C71: 2021 | D71: dms_y15 | E71: =IFERROR(INDEX(INDIRECT(dms_RPT),dms_CRY_start_row+14),0) -> 2035
B72: 2021-22 | C72: 2022 | D72: dms_y16 | E72: =IFERROR(INDEX(INDIRECT(dms_RPT),dms_CRY_start_row+15),0) -> 2036
B73: 2022-23 | C73: 2023
B74: 2023-24 | C74: 2024
B75: 2024-25 | C75: 2025
B76: 2025-26 | C76: 2026
B77: 2026-27 | C77: 2027
B78: 2027-28 | C78: 2028
B79: 2028-29 | C79: 2029
B80: 2029-30 | C80: 2030
B81: 2030-31 | C81: 2031
B82: 2031-32 | C82: 2032
B83: 2032-33 | C83: 2033
B84: 2033-34 | C84: 2034
B85: 2034-35 | C85: 2035
B86: 2035-36 | C86: 2036
B87: 2036-37 | C87: 2037

Sheet AER ETL (hidden)
B1: AER ETL INFORMATION
B3: USES NAMED RANGES FLAG | C3: yes | D3: dms_Defined_Names_Used
B5: IF THIS IS AN ABC RIN - make sure the the named range CRY is applied and the named range dms_dollar_nom_UOM is applied
B6: IF THIS IS A RESET RIN - make sure the named ranges CRY and dms_dollar_nom_UOM are NOT present in the workbook
B7: FOR ABC RINS THAT SPAN MULTIPLE YEARS - make sure MultiYear Flag is set and final year entered as required
B9: Full trading name | C9: =INDEX(dms_TradingNameFull_List,MATCH(dms_TradingName,dms_TradingName_List)) -> APA VTS Australia (Operations) Pty Ltd | E9: dms_TradingNameFull
B10: Trading name | C10: =dms_TradingName -> APA VTS
A11: Selected here | B11: Model / RIN | C11: Reset | D11: dms_Model
A12: Read from Business & other details | B12: Source | C12: ='Business & other details'!AL64 -> Regulatory proposal | D12: dms_Source
B13: Data quality | C13: =dms_Selected_Quality -> Consolidated | D13: dms_DQ_1
B14: Data status | C14: =dms_Selected_Status -> Public | D14: dms_DQ_2
B15: Amendment reason | C15: =dms_Amendment_Text -> 0 | F15: dms_AmendmentReason
B16: Submission date | C16: =dms_Typed_Submission_Date -> 2021-12-01 | D16: dms_SubmissionDate
A18: Redundant | B18: EBSS - First application of scheme in forthcoming period? | C18: No
A19: Pre-populated from lookup table | B19: Data ingestion data quality | C19: =dms_Selected_Quality -> Consolidated | D19: dms_DataQuality | E19: =IF(dms_DQ_2="Confidential","Consolidated","Public")
B20: Sector | C20: =INDEX(dms_Sector_List,MATCH(dms_TradingName,dms_TradingName_List)) -> Gas | D20: dms_Sector | E20: =INDEX(dms_Sector_List,MATCH(dms_TradingName,dms_TradingName_List))
B21: Segment | C21: =INDEX(dms_Segment_List,MATCH(dms_TradingName,dms_TradingName_List)) -> Transmission | D21: dms_Segment | E21: =INDEX(dms_Segment_List,MATCH(dms_TradingName,dms_TradingName_List))
B22: Regulatory Year Ending | C22: =dms_RYE_result -> 2027 | D22: dms_RYE | E22: =IF(dms_MultiYear_Flag=1,LEFT(dms_Specified_FinalYear,2)&RIGHT(dms_Specified_FinalYear,2),INDEX(dms_RYE_Formula_Result,MATCH(dms_Model,dms_Model_List)))
B23: Reporting Period Type | C23: =INDEX(dms_RPT_List,MATCH(dms_TradingName,dms_TradingName_List)) -> Calendar | D23: dms_RPT | E23: =INDEX(dms_RPT_List,MATCH(dms_TradingName,dms_TradingName_List))
B24: EB/CA Unit of Measure for Monetary Values | C24: $0s | D24: dms_dollar_nom_UOM | E24: If the cover sheet is attached to an ABC RIN apply the NAMED RANGE to the cell
B25: Security Classification | C25: Public | D25: dms_Classification | E25: Always Public
B26: Jurisdiction | C26: =INDEX(dms_JurisdictionList,MATCH(dms_TradingName,dms_TradingName_List)) -> Vic | D26: dms_Jurisdiction | E26: =INDEX(dms_JurisdictionList,MATCH(dms_TradingName,dms_TradingName_List))
A27: Relevant for PTRM, RFMs and Reset RINS | B27: $ REAL REFERENCES
B28: Does the named range CRY exist in this file? | C28: =IFERROR(CRY,"NO") -> NO
B29: CRY-1 (last full calendar year before CRY) | C29: =IFERROR(IF(dms_RPT="calendar",CRY-1,LEFT(CRY,4)),"CRY not present") -> CRY not present | D29: dms_Cal_Year_B4_CRY | E29: '=IF(dms_RPT="financial",VALUE(LEFT(dms_SingleYear_FinalYear_Result,4)),VALUE(LEFT(dms_SingleYear_FinalYear_Result,4)-1))
B30: Dollar $ real month | C30: =INDEX(dms_RPTMonth_List,MATCH(dms_TradingName,dms_TradingName_List)) -> December | D30: dms_RPTMonth | E30: =INDEX(dms_RPTMonth_List,MATCH(dms_TradingName,dms_TradingName_List))
B31: Dollar $ real (the last month before the FRCP_y1) | C31: =IF(dms_SingleYearModel="yes",CONCATENATE(dms_RPTMonth)&" "&VALUE((LEFT(CRY,2))&RIGHT(CRY,2)),CONCATENATE(dms_RPTMonth)&" "&dms_DollarReal_year) -> December 2022 | D31: dms_DollarReal | E31: =IF(SUM(dms_SingleYear_Model)>0,CONCATENATE(dms_RPTMonth)&" "&VALUE((LEFT(CRY,2))&RIGHT(CRY,2)),CONCATENATE(dms_RPTMonth)&" "&VALUE((LEFT(dms_RYE,2)&RIGHT(dms_RYE,2))))
B32: Dollar $ real previous year (PRCP_y5) | C32: =IF(dms_SingleYearModel="yes",CONCATENATE(dms_RPTMonth)&" "&VALUE((LEFT(CRY,2))&RIGHT(CRY,2)),CONCATENATE(dms_RPTMonth)&" "&dms_Previous_DollarReal_year) -> December 2017 | D32: dms_DollarReal_Prev | E32: =IF(SUM(dms_SingleYear_Model)>0,CONCATENATE(dms_RPTMonth)&" "&VALUE(((LEFT(CRY,2))&RIGHT(CRY,2))-1),CONCATENATE(dms_RPTMonth)&" "&VALUE(((LEFT(dms_CRCP_FirstYear_Result,2)&RIGHT(dms_CRCP_FirstYear_Result,2))))-1)
B33: PTRM/ RFMs
B34: Form of control | C34: =INDEX(dms_FormControl_List,MATCH(dms_TradingName,dms_TradingName_List)) -> Weighted average price cap | D34: dms_FormControl | E34: =INDEX(dms_FormControl_List,MATCH(dms_TradingName,dms_TradingName_List))
A35: All potential values for Regulatory Years or RYEs as calculated | B35: This block works out the various RYE's for ALL RIN types and MODELS
B36: dms_start_year | C36: =FRCP_y1 -> 2023 | D36: FRCP_y1 from cover sheet
B37: dms_CRY_start_year | C37: =IFERROR(CRY,CRCP_y4) -> 2021
B38: dms_CRY_start_row | C38: =IFERROR(MATCH(dms_CRY_start_year,INDIRECT(dms_RPT),0),0) -> 34
B39: dms_FRCP_start_row | C39: =MATCH(dms_start_year,INDIRECT(dms_RPT),0) -> 36 | D39: Uses FRCP_y1 as a start reference
B40: dms_CRCP_start_row | C40: =dms_FRCP_start_row-dms_CRCPlength_Num -> 31 | D40: Uses the value in dms_CRCPlength_Num
B41: dms_PRCP_start_row | C41: =dms_FRCP_start_row-dms_CRCPlength_Num-dms_PRCPlength_Num -> 26 | D41: Uses the value in dms_CRCPlength_Num and dms_PRCPlength_Num
B42: dms_RYE_start_row | C42: =dms_FRCP_start_row+(dms_FRCPlength_Num-1) -> 40 | D42: Uses the value in dms_FRCPlength_Num-1
B43: FRCP_start_year | C43: =INDEX(INDIRECT(dms_RPT),dms_FRCP_start_row) -> 2023 | D43: Converts the FRCP start row to display the year
B44: CRCP_start_year | C44: =INDEX(INDIRECT(dms_RPT),dms_CRCP_start_row) -> 2018 | D44: Converts the CRCP start row to display the year
B45: PRCP_start_year | C45: =INDEX(INDIRECT(dms_RPT),dms_PRCP_start_row) -> 2013 | D45: Converts the PRCP start row to display the year
B46: FRCP_final_year | C46: =INDEX(INDIRECT(dms_RPT),dms_FRCP_start_row+dms_FRCPlength_Num-1) -> 2027 | D46: Finds the FRCP final year
B47: CRCP_final_year | C47: =INDEX(INDIRECT(dms_RPT),dms_CRCP_start_row+dms_CRCPlength_Num-1) -> 2022 | D47: Finds the CRCP final year
B48: PRCP_final_year | C48: =INDEX(INDIRECT(dms_RPT),dms_PRCP_start_row+dms_FRCPlength_Num-1) -> 2017 | D48: Finds the PRCP final year
B49: dms_Reset_final_year | C49: =INDEX(INDIRECT(dms_RPT),dms_RYE_start_row) -> 2027 | D49: For Resets and PTRM/RFMs (same as FRCP_final_year)
B50: dms_SpecifiedYear_final_year | C50: =FRY -> 2025-26 | D50: FRY from cover sheet
B51: dms_DollarReal_year | C51: =LEFT(CRCP_final_year,2)&RIGHT(CRCP_final_year,2) -> 2022 | D51: Uses the value in CRCP_final_year
B52: dms_Previous_DollarReal_year | C52: =LEFT(PRCP_final_year,2)&RIGHT(PRCP_final_year,2) -> 2017 | D52: Uses the value in PRCP_final_year
B53: dms_CRY_RYE | C53: =IFERROR(LEFT(CRY,2)&RIGHT(CRY,2),0) -> 0 | D53: For ABC single year RINS
B54: dms_Reset_RYE | C54: =IF(dms_Model_Span>1,IF(dms_Model="RFM",(LEFT(dms_DollarReal_year,2)&RIGHT(dms_DollarReal_year,2)),(LEFT(dms_Reset_final_year,2)&RIGHT(dms_Reset_final_year,2))),0) -> 2027 | D54: If model span > 1 then uses dms_Reset_RYE otherwise it's a multi year ABC and uses dms_Specified_RYE
B55: dms_Specified_RYE | C55: =IF(dms_MultiYear_ResponseFlag="Yes",(LEFT(dms_Specified_FinalYear,2)&RIGHT(dms_Specified_FinalYear,2)),0) -> 0 | D55: If multi year ABC - uses dms_Specified_FinalYear
B56: dms_Model_Span | C56: =INDEX(dms_Model_Span_List,MATCH(dms_Model,dms_Model_List)) -> 5 | D56: A result of 5 is used to signify that it is more than 1 year span
B57: dms_RYE_result | C57: =IF(dms_MultiYear_ResponseFlag="yes",dms_Specified_RYE,(IF(dms_Model_Span>1,dms_Reset_RYE,dms_CRY_RYE))) -> 2027 | D57: Nested IF - feeds into dms_RYE
B58: dms_Reset_Span | C58: =IF(dms_Reset_RYE>0,CONCATENATE(FRCP_y1," to ",FRCP_final_year),0) -> 2023 to 2027 | D58: Reset span of years as text
B59: dms_SpecifiedYear_Span | C59: =IF(dms_Specified_RYE>0,CONCATENATE(CRY," to ",dms_Specified_FinalYear),0) -> 0 | D59: Multi year ABC span of years as text
B60: dms_Header_Span | C60: =IF(dms_MultiYear_Flag=1,CONCATENATE("Data Span ",dms_SpecifiedYear_Span),IF(dms_Model_Span>1,CONCATENATE("Data Span ",dms_y1&" - "&FRCP_final_year))) -> Data Span 2021 - 2027 | D60: NESTED IF - for Sheet Headers
B61: ABC RINS THAT SPAN MULTIPLE YEARS
B62: This is a multi year ABC RIN? | C62: No
C63: =IF(dms_MultiYear_ResponseFlag="No",0,1) -> 0 | D63: dms_MultiYear_Flag | E63: This is set from the answer provided above
C64: =IF(dms_MultiYear_Flag=1,FRY,"not a Multiple year submission") -> not a Multiple year submission | D64: dms_Specified_FinalYear | E64: The result here is returned to dms_CRCP_FinalYear_Result if response to Q in C73 is "yes" and dms_MultiYear_Flag is set to 1
B65: Start year for 5.2 in Multi year ABC RINS | C65: =IFERROR(IF(dms_MultiYear_Flag=1,FRY,CRY),"not an ABC") -> not an ABC | D65: dms_0502_Inst_Year | E65: =IF(dms_MultiYear_Flag=1,FRY,CRY) | G65: For single year RINS this is CRY - multi year RINS need to start a the end of the span of years (ie. FRY)
B66: WHAT IS THE RYE?
B67: Reg Period Lengths
B68: PRCP length in years | C68: =INDEX(dms_PRCPlength_List,MATCH(dms_TradingName,dms_TradingName_List)) -> 5 | D68: dms_PRCPlength_Num | E68: =INDEX(dms_PRCPlength_List,MATCH(dms_TradingName,dms_TradingName_List))
B69: CRCP length in years | C69: =INDEX(dms_CRCPlength_List,MATCH(dms_TradingName,dms_TradingName_List)) -> 5 | D69: dms_CRCPlength_Num | E69: =INDEX(dms_CRCPlength_List,MATCH(dms_TradingName,dms_TradingName_List))
B70: FRCP length in years | C70: =INDEX(dms_FRCPlength_List,MATCH(dms_TradingName,dms_TradingName_List)) -> 5 | D70: dms_FRCPlength_Num | E70: =INDEX(dms_FRCPlength_List,MATCH(dms_TradingName,dms_TradingName_List))
B71: Single year RIN?
B72: Single Year ABC RIN ? | C72: =IF(dms_Model="EB",1,0) -> 0 | D72: dms_EB
C73: =IF(dms_Model="CA",1,0) -> 0 | D73: dms_CA | E73: =dms_SingleYear_Model
C74: =IF(dms_Model="ARR",1,0) -> 0 | D74: dms_ARR
B75: Is this a single Year ABC RIN? | C75: =IF(SUM(dms_SingleYear_Model)=1,"yes","no") -> no | D75: dms_SingleYearModel | E75: =IF(SUM(dms_SingleYear_Model)=1,"yes","no")
B76: Single Year Final Year Result | C76: =IF(AND(dms_SingleYearModel="yes",dms_MultiYear_Flag=0),CRY,0) -> 0 | D76: dms_SingleYear_FinalYear_Result | E76: =IFERROR(IF(SUM(dms_SingleYear_Model)<>0,(INDIRECT(dms_SingleYear_FinalYear_Ref)),"not a single year RIN"),"CRY not present")
B77: Multi year RIN?
B79: Multi Year Reset/Model? | C79: =IF(dms_Model_Span>1,"yes","no") -> yes
B80: Final year result for Reset/Model | C80: =IF(dms_Model_Span>1,dms_Reset_final_year,0) -> 2027 | D80: dms_MultiYear_FinalYear_Result
B82: Multi Year ABC RIN? | C82: =IF(dms_MultiYear_Flag=1,"yes","no") -> no | D82: dms_MultiYear_ABC_RIN
B83: Final year result for ABC multi year | C83: =IF(dms_MultiYear_Flag=1,C50,0) -> 0
B85: EB RINS
B86: Calendar Year for table 3.6 data | C86: =IFERROR(IF(dms_Segment="Transmission",dms_Cal_Year_B4_CRY,CRY),"CRY not present") -> CRY not present | D86: dms_0306_Year | E86: =IF(dms_Segment="Transmission",dms_Cal_Year_B4_CRY,CRY)
B87: CA RINS
B88: Find how many rows in tables 6.3 sustained interruptions? | E88: dms_060301_MaxRows only returns a valid value when cover sheet is attached to a CA file
C89: =IF(dms_Model<>"CA","not a CA","Is a CA") -> not a CA | E89: =IF(dms_Model<>"CA","not a CA","Is a CA")
B90: dms_060301_Avg_Duration_Sustained_Int_Values present? | C90: =IFERROR(IF(INDEX(dms_060301_Avg_Duration_Sustained_Int_Values,1,1)<>"","yes","no"),"no") -> no | D90: dms_060301_checkvalue | E90: =IFERROR(IF(INDEX(dms_060301_Avg_Duration_Sustained_Int_Values,1,1)<>"","yes","no"),"no")
C91: =IF(AND(dms_Model="CA",(dms_060301_checkvalue="no")),"error - NR not present","no errors") -> no errors | E91: =IF(AND(dms_Model="CA",(dms_060301_checkvalue="no")),"error - NR not present","no errors")
B92: Table 6.3.1 - last row reference | C92: =IFERROR(IF(dms_Model="CA",LOOKUP(2,1/(dms_060301_Avg_Duration_Sustained_Int_Values<>""),(ROW(dms_060301_Avg_Duration_Sustained_Int_Values))),"not a CA"),"6.3 not present") -> not a CA | D92: dms_060301_LastRow | E92: =IFERROR(IF(dms_Model="CA",LOOKUP(2,1/(dms_060301_Avg_Duration_Sustained_Int_Values<>""),(ROW(dms_060301_Avg_Duration_Sustained_Int_Values))),"not a CA"),"6.3 not present")
B93: Table 6.3.1 - max number rows | C93: =IFERROR(IF(dms_Model="CA",(dms_060301_LastRow-15),"not a CA"),"error") -> not a CA | D93: dms_060301_MaxRows | E93: =IFERROR(IF(dms_Model="CA",(dms_060301_LastRow-15),"not a CA"),"error")
B94: Table 6.6.3 - Public lighting repair - no. business days | C94: =INDEX(dms_663_List,MATCH(dms_TradingName,dms_TradingName_List)) -> x | D94: dms_663 | E94: =INDEX(dms_663_List,MATCH(dms_TradingName,dms_TradingName_List))
B95: ARR or RESET RINS
B96: How many rows in tables 6.1 or 6.7? (leap year?) | C96: insert dms_LeapYear NR if required | E96: 'dms_LeapYear is used to determine dms_060701_Max_Rows BUT it is only found on worksheet 6.1 or 6.7 and the date value in the cell is used to determine whether it is a leap year
B97: Is dms_LeapYear named range present? | C97: =IFERROR(IF(dms_LeapYear,"yes"),"no") -> no
B98: Table 6.7.1 - includes a leap year? | C98: =IFERROR(IF(MONTH(DATE(YEAR(dms_LeapYear),2,29))=2,"is a leap year","not a leap year"), "dms_LeapYear not present") -> dms_LeapYear not present | D98: dms_LeapYear_Result | E98: =IFERROR(IF(MONTH(DATE(YEAR(dms_LeapYear),2,29))=2,"is a leap year","not a leap year"),"dms_LeapYear not present")
B99: MaxRows if Reset and leap year | C99: =IF(dms_LeapYear_Result="is a leap year",1827,1826) -> 1826 | D99: dms_060701_Reset_MaxRows | E99: =IF(dms_LeapYear_Result="is a leap year",1827,1826) | H99: number of days present in Reset RIN table
B100: MaxRows if ARR and leap year | C100: =IF(dms_LeapYear_Result="is a leap year",366,365) -> 365 | D100: dms_060701_ARR_MaxRows | E100: =IF(dms_LeapYear_Result="is a leap year",366,365) | H100: number of days present in ARR RIN table
B101: Table 6.7.1 - Max Rows (leap year/ non leap year) | C101: =IF(dms_Model="ARR",dms_060701_ARR_MaxRows,IF(dms_Model="Reset",dms_060701_Reset_MaxRows,"not a relevant RIN type")) -> 1826 | D101: dms_060701_MaxRows | E101: =IF(dms_Model="ARR",dms_060701_ARR_MaxRows,IF(dms_Model="Reset",dms_060701_Reset_MaxRows,"not a relevant RIN type"))
B102: How many columns in 6.7? (4 or 5 feeder categories) | C102: =IF(dms_FifthFeeder_flag_NSP="NO","This NSP has only 4 feeder categories","This NSP has 5 feeder categories") -> This NSP has only 4 feeder categories
B103: Table 6.7.1 - Last column (# of feeder categories > 4) | C103: =IF(dms_FifthFeeder_flag_NSP="NO",10,12) -> 10 | D103: dms_060701_MaxCols | E103: =IF(dms_FifthFeeder_flag_NSP="NO",8,10)
B104: Table 6.7.1 - Number of offset rows | C104: =IF(dms_Model="ARR",15,9) -> 9 | D104: dms_060701_OffsetRows | E104: =IF(dms_Model="ARR",15,9)
B105: Start date for telephone answering in 6.1 or 6.7? | E105: Using 060101 as naming standard not 060701 for start dates
B106: Table 6.1.1 and 6.7.1 - Start Date as Text | C106: =IF(dms_SingleYearModel="yes",(CONCATENATE(IF(LEN(CRY)=4,"1-Jan-","1-Jul-"),LEFT(CRY,4))),(CONCATENATE(IF(LEN(PRCP_y4)=4,"1-Jan-","1-Jul-"),LEFT(PRCP_y4,4)))) -> 1-Jan-2016 | D106: dms_060101_StartDateTxt | E106: =IF(SUM(dms_SingleYear_Model)>1,(CONCATENATE(IF(LEN(CRY)=4,"1-Jan-","1-Jul-"),LEFT(CRY,4))),(CONCATENATE(IF(LEN(CRCP_y4)=4,"1-Jan-","1-Jul-"),LEFT(CRCP_y4,4))))
B107: Table 6.1.1 and 6.7.1 - Start Date as Date Value | C107: =DATEVALUE(dms_060701_StartDateTxt) -> 42370 | D107: dms_060101_StartDateVal | E107: =DATEVALUE(dms_060701_StartDateTxt)
B108: ARRs
B109: How many rows in table 6.8? | C109: insert dms_060801_StartCell NR if required | E109: dms_060801_StartCell is only found on worksheet 6.8 and is used to determine the starting date for the date range
B110: Is dms_060801_StartCell named range present? | C110: yes | E110: =IFERROR(IF((ROW(dms_060801_StartCell)-1)=1,"yes","yes"),"no")
B111: Table 6.8 - Number of offset rows | C111: 12 | D111: dms_0608_OffsetRows | E111: =IFERROR(IF(dms_Model="ARR",(ROW(dms_060801_StartCell)-1),"not an ARR"),"6.8 error")
B112: Table 6.8 - Last row | C112: 0 | D112: dms_0608_LastRow | E112: =IFERROR(IF(dms_060801_StartCell<>"",IF(dms_Model="ARR",(LOOKUP(2,1/(dms_060801_01_Values<>""),(ROW(dms_060801_01_Values)))),"not an ARR"),0),"0")
B113: Table 6.8 - MaxRows | C113: =IFERROR(IF(dms_Model="ARR",(MAX(0,dms_0608_LastRow-dms_0608_OffsetRows)),"not an ARR"),"0") -> not an ARR | D113: dms_060801_MaxRows | E113: =IFERROR(IF(dms_Model="ARR",(MAX(0,dms_0608_LastRow-dms_0608_OffsetRows)),"not an ARR"),"0")
B114: TNSP RESET RINS
B115: Table 7.9.4 only appears in TNSPs Reset RIN
B116: Table 7.9.4 - first year | C116: =LEFT(PRCP_y3,4) -> 2015 | D116: dms_070904_Start_Year | E116: =LEFT(PRCP_y3,4)
B118: MISC
B119: Distribution Determination Reference | C119: =INDEX(dms_DeterminationRef_List,MATCH(dms_TradingName,dms_TradingName_List)) -> 0 | D119: dms_DeterminationRef
B120: Public lighting NSP? | C120: =INDEX(dms_Public_Lighting_List,MATCH(dms_TradingName,dms_TradingName_List)) -> NO | D120: dms_Public_Lighting | E120: =INDEX(dms_Public_Lighting_List,MATCH(dms_TradingName,dms_TradingName_List))
B121: CBD Feeder for this business | C121: =INDEX(dms_CBD_flag,MATCH(dms_TradingName,dms_TradingName_List)) -> NO | D121: dms_CBD_flag_NSP
B122: Urban Feeder for this business | C122: =INDEX(dms_Urban_flag,MATCH(dms_TradingName,dms_TradingName_List)) -> NO | D122: dms_Urban_flag_NSP
B123: Short rural Feeder for this business | C123: =INDEX(dms_ShortRural_flag,MATCH(dms_TradingName,dms_TradingName_List)) -> NO | D123: dms_ShortRural_flag_NSP
B124: Long rural Feeder for this business | C124: =INDEX(dms_LongRural_flag,MATCH(dms_TradingName,dms_TradingName_List)) -> NO | D124: dms_LongRural_flag_NSP
B125: Fifth Feeder Category (eg. TasNetworks (D)) | C125: =INDEX(dms_FeederType_5_flag,MATCH(dms_TradingName,dms_TradingName_List)) -> NO | D125: dms_FifthFeeder_flag_NSP | E125: =INDEX(dms_FeederType_5_flag,MATCH(dms_TradingName,dms_TradingName_List))
B127: DISCARD FILES
B128: discard this record? | C128: NO | D128: dms_DISCARD | E128: If record is to be discarded from DB set this flag to YES
B130: SUBSET FILES
B131: Is this Submission File a Subset File | C131: NO | D131: dms_Partial
B134: REGULATORY YEARS FOR MULTI RYE SUBMISSIONS
B135: Multiple RYE flag | C135: NO | D135: dms_Multi_RYE_flag
C136: Manually specify RYE | D136: Named ranges to apply
C137: 2013 | D137: dms_RYE_01
C138: 2014 | D138: dms_RYE_02
C139: 2015 | D139: dms_RYE_03
C140: 2016 | D140: dms_RYE_04
C141: 2017 | D141: dms_RYE_05
C142: 2018 | D142: dms_RYE_06
C143: 2019 | D143: dms_RYE_07
C144: 2020 | D144: dms_RYE_08
C145: 2021 | D145: dms_RYE_09
